Workbook

Sheet Главная
C1: ПРАЙСОВЫЕ ЦЕНЫ НА ПРОДУКЦИЮ СЕРВИСНОГО МЕТАЛЛОЦЕНТРА
C4: Цены указаны с НДС, от 1 тонны
C5: Арматура | H5: Уголок 20-125
C6: Балка | H6: Уголок от 140
C7: Квадрат | H7: Труба Б Ш
C8: Круг конструкц. и легир. | H8: Труба ОЦ
C9: Лист Г К 1.5-12 | H9: Труба профильная НЛГ 10-60
C10: Лист Г К НЛГ 1.5-12 | H10: Труба профильная 70-160
C11: Лист Г К >12 | H11: Труба профильная НЛГ 70-160
C12: Лист Г К НЛГ >12 | H12: Труба профильная от 180
H13: Труба профильная НЛГ от 180
C14: Швеллер гнутый | H14: Труба Э С 244-630
C15: Швеллер 5-18 | H15: Проволока ВР
C16: Швеллер от 20 | H16: Проволока Т О (черная)
A17: Прайс от | B17: =TODAY() -> 2025-10-22 | C17: Шестигранник
A18: Не является публичной офертой. | C18: Полоса
A19: Цены могут отличаться от приведенных на сайте. | C19: Полоса ОЦ
A20: Цены уточняйте у менеджеров по тел.+7 (342) 219-56-60 доб 2106

Sheet Арматура
A9: На Главную
A10: ПРАЙС-ЛИСТ на Арматуру
A12: Цены указаны с НДС, от 1 тонны
A13: Наименование | B13: Мерность | C13: Марка стали | D13: Гост | E13: Вес 1 шт, кг | F13: Вес 1 пм, кг | G13: ЕИ | H13: Цена р/т
A15: Арматура 6 | B15: бухта | C15: А-III 25Г2С | D15: 5781-82 | E15: 0 | F15: 0.22 | G15: Т | H15: =J15*6%+J15 -> 57600.4 | J15: 54340
A16: Арматура 8 | B16: 6м | C16: А-III 25Г2С | D16: 5781-82 | E16: 2.37 | F16: 0.4 | G16: Т | H16: =J16*6%+J16 -> 57049.2 | J16: 53820
A17: Арматура 8 | B17: бухта | C17: А-III 25Г2С | D17: 5781-82 | E17: 0 | F17: 0.4 | G17: Т | H17: 57049.2 | J17: 53820
A18: Арматура 10 | B18: 6м | C18: А-III 25Г2С | D18: 5781-82 | E18: 3.7 | F18: 0.62 | G18: Т | H18: 57600.4 | J18: 54340
A19: Арматура 10 | B19: 11.7м | C19: А-III 25Г2С | D19: 5781-82 | E19: 8 | F19: 0.62 | G19: Т | H19: 57600.4 | J19: 54340
A20: Арматура 12 | B20: 11.7м | C20: А-III 25Г2С | D20: 5781-82 | E20: 11 | F20: 0.89 | G20: Т | H20: 55936.2 | J20: 52770
A21: Арматура 14 | B21: 11.7м | C21: А-III 25Г2С | D21: 5781-82 | E21: 15 | F21: 1.21 | G21: Т | H21: 54833.8 | J21: 51730
A22: Арматура 16 | B22: 11.7м | C22: А-III 25Г2С | D22: 5781-82 | E22: 19 | F22: 1.58 | G22: Т | H22: 54833.8 | J22: 51730
A23: Арматура 18 | B23: 11.7м | C23: А-III 25Г2С | D23: 5781-82 | E23: 25 | F23: 2 | G23: Т | H23: 54833.8 | J23: 51730
A24: Арматура 20 | B24: 11.7м | C24: А-III 25Г2С | D24: 5781-82 | E24: 30 | F24: 2.47 | G24: Т | H24: 54833.8 | J24: 51730
A25: Арматура 22 | B25: 11.7м | C25: А-III 25Г2С | D25: 5781-82 | E25: 34.87 | F25: 2.98 | G25: Т | H25: 54833.8 | J25: 51730
A26: Арматура 25 | B26: 11.7м | C26: А-III 25Г2С | D26: 5781-82 | E26: 45.05 | F26: 3.85 | G26: Т | H26: 54833.8 | J26: 51730
A27: Арматура 28 | B27: 11.7м | C27: А-III 25Г2С | D27: 5781-82 | E27: 56.51 | F27: 4.83 | G27: Т | H27: 54833.8 | J27: 51730
A28: Арматура 32 | B28: 11.7м | C28: А-III 25Г2С | D28: 5781-82 | E28: 0.97 | F28: 0.08 | G28: Т | H28: 54833.8 | J28: 51730
A29: Арматура 36 | B29: 11.7м | C29: А-III 25Г2С | D29: 5781-82 | E29: 93.48 | F29: 7.99 | G29: Т | H29: 54833.8 | J29: 51730
A30: Арматура 40 | B30: 11.7м | C30: А-III 25Г2С | D30: 5781-82 | E30: 115.5 | F30: 9.87 | G30: Т | H30: 54833.8 | J30: 51730
A32: Внимание! Цены справочные, актуальные запрашивать в отделах продаж
A33: Цены указаны при условии 100% предоплаты. Условия рассрочки оплаты согласовываются индивидуально
A34: Компания предоставляет услуги:
A35: *Размотка бухтовой арматуры, круга
A36: *Доставка автотранспортом
A37: *Резка кругом, газом, лазером (в т.ч. давальческого сырья)
A38: *Рубка на гильотине (в т.ч. давальческого сырья)
A39: *Гибка листов, покраска и сверление металла
A40: *Ответ хранение металла в крытом складе
A41: *Чистка труб
A42: *Взвешивание транспорта по запросу
A43: *Прайс-лист носит информационный характер и не является публичной офертой. Стоимость товаров, другие виды товаров, их наличие и подробные характеристики уточняйте у вашего менеджера или по телефону +7 (342) 219-56-60 или zakaz@kvin.ru

Sheet Балка
K6: Балка
A8: Внимание! Цены справочные, актуальные запрашивать в отделах продаж
A9: Цены указаны при условии 100% предоплаты. Условия рассрочки оплаты согласовываются индивидуально
A11: На Главную
A12: ПРАЙС-ЛИСТ на Балку
A14: Цены указаны с НДС от 1 тонны
A15: Наименование | B15: Мерность | C15: Марка стали | D15: Гост | E15: Вес 1 шт, кг | F15: Вес 1 пм, кг | G15: ЕИ | H15: Цена р/т
A17: Балка 10Б1 | B17: 12м | C17: С255 | D17: 57837 | E17: 100 | F17: 8.1 | G17: Т | H17: =L17*6%+L17 -> 132288 | L17: 124800
A18: Балка 10Б1 | B18: 12м | C18: ст3пс5/сп5 | D18: 57837 | E18: 97.2 | F18: 8.1 | G18: Т | H18: =L18*6%+L18 -> 132288 | L18: 124800
A19: Балка 12Б2 | B19: 12м | C19: С255 | D19: 57837 | E19: 124.8 | F19: 10.4 | G19: Т | H19: 132733.2 | L19: 125220
A20: Балка 12Б1 | B20: 12м | C20: С255 | D20: 57837 | E20: 104.4 | F20: 8.7 | G20: Т | H20: 132733.2 | L20: 125220
A21: Балка 12Б2 | B21: 12м | C21: ст3пс/сп | D21: 57837 | E21: 124.8 | F21: 10.4 | G21: Т | H21: 132733.2 | L21: 125220
A22: Балка 12Б1 | B22: 12м | C22: ст3пс5/сп5 | D22: 57837 | E22: 104.4 | F22: 8.7 | G22: Т | H22: 132733.2 | L22: 125220
A23: Балка 12Б1 | B23: 6м | C23: ст3пс5/сп5 | D23: 57837 | E23: 52.2 | F23: 8.7 | G23: Т | H23: 132733.2 | L23: 125220
A24: Балка 14Б1 | B24: 12м | C24: С255 | D24: 57837 | E24: 126 | F24: 10.5 | G24: Т | H24: 128207 | L24: 120950
A25: Балка 14Б2 | B25: 12м | C25: С255 | D25: 57837 | E25: 154.8 | F25: 12.9 | G25: Т | H25: 128207 | L25: 120950
A26: Балка 14Б2 | B26: 12м | C26: ст3пс5/сп5 | D26: 57837 | E26: 154.8 | F26: 12.9 | G26: Т | H26: 128207 | L26: 120950
A27: Балка 14Б1 | B27: 12м | C27: ст3пс5/сп5 | D27: 57837 | E27: 126 | F27: 10.5 | G27: Т | H27: 128207 | L27: 120950
A28: Балка 14 | B28: 12м | C28: ст3пс5/сп5 | D28: 8239 | E28: 164.4 | F28: 13.7 | G28: Т | H28: 128207 | L28: 120950
A29: Балка 16Б1 | B29: 12м | C29: С255 | D29: 57837 | E29: 152.4 | F29: 12.7 | G29: Т | H29: 128207 | L29: 120950
A30: Балка 16Б1 | B30: 12м | C30: ст3пс5/сп5 | D30: 57837 | E30: 152.4 | F30: 12.7 | G30: Т | H30: 128207 | L30: 120950
A31: Балка 16Б2 | B31: 12м | C31: ст3пс5/сп5 | D31: 57837 | E31: 189.6 | F31: 15.8 | G31: Т | H31: 128207 | L31: 120950
A32: Балка 18Б2 | B32: 12м | C32: С255 | D32: 57837 | E32: 225.6 | F32: 18.8 | G32: Т | H32: 124571.2 | L32: 117520
A33: Балка 18Б2 | B33: 12м | C33: ст3пс5/сп5 | D33: 57837 | E33: 225.6 | F33: 18.8 | G33: Т | H33: 124571.2 | L33: 117520
A34: Балка 18Б1 | B34: 12м | C34: ст3пс5/сп5 | D34: 57837 | E34: 184.8 | F34: 15.4 | G34: Т | H34: 124571.2 | L34: 117520
A35: Балка 18 | B35: 12м | C35: С255 | D35: ТУ 24107-044-00186269 | E35: 220.8 | F35: 18.4 | G35: Т | H35: 124571.2 | L35: 117520
A36: Балка 18Б1 | B36: 12м | C36: С255 | D36: 57837 | E36: 190 | F36: 15.4 | G36: Т | H36: 124571.2 | L36: 117520
A37: Балка 20 | B37: 12м | C37: ст3пс5/сп5 | D37: 8239 | E37: 252 | F37: 21 | G37: Т | H37: 107929.2 | L37: 101820
A38: Балка 20Б1 | B38: 12м | C38: С255 | D38: 57837 | E38: 255.6 | F38: 21.3 | G38: Т | H38: 107929.2 | L38: 101820
A39: Балка 20Б1 | B39: 12м | C39: ст3пс5/сп5 | D39: 57837 | E39: 255.6 | F39: 21.3 | G39: Т | H39: 107929.2 | L39: 101820
A40: Балка 20Б2 | B40: 12м | C40: С255 | D40: 57837 | E40: 303.6 | F40: 25.3 | G40: Т | H40: 107929.2 | L40: 101820
A41: Балка 20К1 | B41: 12м | C41: С255 | D41: 57837 | E41: 497 | F41: 41.4 | G41: Т | H41: 96905.2 | L41: 91420
A42: Балка 20К2 | B42: 12м | C42: С255 | D42: 57837 | E42: 598.8 | F42: 49.9 | G42: Т | H42: 96905.2 | L42: 91420
A43: Балка 20Ш1 | B43: 12м | C43: С255 | D43: 57837 | E43: 367.2 | F43: 30.6 | G43: Т | H43: 97339.8 | L43: 91830
A44: Балка 20Ш1 | B44: 12м | C44: ст3пс5/сп5 | D44: 57837 | E44: 367.2 | F44: 30.6 | G44: Т | H44: 97339.8 | L44: 91830
A45: Балка 20Ш2 | B45: 12м | C45: С255 | D45: 57837 | E45: 465.6 | F45: 38.8 | G45: Т | H45: 97339.8 | L45: 91830
A46: Балка 24М | B46: 12м | C46: С255 | D46: 19425 | E46: 459.6 | F46: 38.3 | G46: Т | H46: 145516.8 | L46: 137280
A47: Балка 25Б1 | B47: 12м | C47: С255 | D47: 57837 | E47: 308.4 | F47: 25.7 | G47: Т | H47: 102078 | L47: 96300
A48: Балка 25Б1 | B48: 12м | C48: ст3пс5/сп5 | D48: 57837 | E48: 308.4 | F48: 25.7 | G48: Т | H48: 102078 | L48: 96300
A49: Балка 25Б2 | B49: 12м | C49: С255 | D49: 57837 | E49: 355.2 | F49: 29.6 | G49: Т | H49: 102078 | L49: 96300
A50: Балка 25К1 | B50: 12м | C50: С255 | D50: 57837 | E50: 751.2 | F50: 62.6 | G50: Т | H50: 94149.2 | L50: 88820
A51: Балка 25К2 | B51: 12м | C51: С255 | D51: 57837 | E51: 868.8 | F51: 72.4 | G51: Т | H51: 94149.2 | L51: 88820
A52: Балка 25К2 | B52: 12м | C52: ст3пс/сп | D52: 57837 | E52: 868.8 | F52: 72.4 | G52: Т | H52: 94149.2 | L52: 88820
A53: Балка 25Ш1 | B53: 12м | C53: С255 | D53: 57837 | E53: 529.2 | F53: 44.1 | G53: Т | H53: 96354 | L53: 90900
A54: Балка 25Ш1 | B54: 12м | C54: ст3пс5/сп5 | D54: 57837 | E54: 529.2 | F54: 44.1 | G54: Т | H54: 96354 | L54: 90900
A55: Балка 25Ш2 | B55: 12м | C55: С255 | D55: 57837 | E55: 529.2 | F55: 53.8 | G55: Т | H55: 96354 | L55: 90900
A56: Балка 30Б1 | B56: 12м | C56: ст3пс5/сп5 | D56: 57837 | E56: 384 | F56: 32 | G56: Т | H56: 96905.2 | L56: 91420
A57: Балка 30Б1 | B57: 12м | C57: С255 | D57: 57837 | E57: 384 | F57: 32 | G57: Т | H57: 96905.2 | L57: 91420
A58: Балка 30Б2 | B58: 12м | C58: С255 | D58: 57837 | E58: 440.4 | F58: 36.7 | G58: Т | H58: 96905.2 | L58: 91420
A59: Балка 30Б2 | B59: 12м | C59: ст3пс5/сп5 | D59: 57837 | E59: 440.4 | F59: 36.7 | G59: Т | H59: 96905.2 | L59: 91420
A60: Балка 30К1 | B60: 12м | C60: С255 | D60: 57837 | E60: 1044 | F60: 87 | G60: Т | H60: 94149.2 | L60: 88820
A61: Балка 30К2 | B61: 12м | C61: С255 | D61: 57837 | E61: 1128 | F61: 94 | G61: Т | H61: 94149.2 | L61: 88820
A62: Балка 30М | B62: 12м | C62: С255 | D62: 19425 | E62: 602.4 | F62: 50.2 | G62: Т | H62: 146619.2 | L62: 138320
A63: Балка 30Ш1 | B63: 12м | C63: С255 | D63: 57837 | E63: 681.6 | F63: 56.8 | G63: Т | H63: 94149.2 | L63: 88820
A64: Балка 30Ш2 | B64: 12м | C64: С255 | D64: 57837 | E64: 823.2 | F64: 68.6 | G64: Т | H64: 94149.2 | L64: 88820
A65: Балка 30Ш2 | B65: 12м | C65: ст3пс5/сп5 | D65: 57837 | E65: 823.2 | F65: 68.6 | G65: Т | H65: 94149.2 | L65: 88820
A66: Балка 35Б1 | B66: 12м | C66: С255 | D66: 57837 | E66: 496.8 | F66: 41.4 | G66: Т | H66: 95357.6 | L66: 89960
A67: Балка 35Б2 | B67: 12м | C67: С255 | D67: 57837 | E67: 595.2 | F67: 49.6 | G67: Т | H67: 96354 | L67: 90900
A68: Балка 35Б2 | B68: 12м | C68: ст3пс5/сп5 | D68: 57837 | E68: 595.2 | F68: 49.6 | G68: Т | H68: 96354 | L68: 90900
A69: Балка 35К1 | B69: 12м | C69: С255 | D69: 57837 | E69: 1309.2 | F69: 109.1 | G69: Т | H69: 94149.2 | L69: 88820
A70: Балка 35К2 | B70: 12м | C70: С255 | D70: 57837 | E70: 1638 | F70: 136.5 | G70: Т | H70: 99544.6 | L70: 93910
A71: Балка 35Ш1 | B71: 12м | C71: С255 | D71: 57837 | E71: 783.6 | F71: 65.3 | G71: Т | H71: 94149.2 | L71: 88820
A72: Балка 35Ш2 | B72: 12м | C72: С255 | D72: 57837 | E72: 956.4 | F72: 79.7 | G72: Т | H72: 94149.2 | L72: 88820
A73: Балка 36М | B73: 12м | C73: С255 | D73: 19425 | E73: 694.8 | F73: 57.9 | G73: Т | H73: 144414.4 | L73: 136240
A74: Балка 40Б1 | B74: 12м | C74: С255 | D74: 57837 | E74: 679 | F74: 56.6 | G74: Т | H74: 94149.2 | L74: 88820
A75: Балка 40Б2 | B75: 12м | C75: С255 | D75: 57837 | E75: 792 | F75: 66 | G75: Т | H75: 94149.2 | L75: 88820
A76: Балка 40К1 | B76: 12м | C76: С255 | D76: 57837 | E76: 1759.2 | F76: 146.6 | G76: Т | H76: 114321 | L76: 107850
A77: Балка 40К2 | B77: 12м | C77: С255 | D77: 57837 | E77: 2060.4 | F77: 171.7 | G77: Т | H77: 115858 | L77: 109300
A78: Балка 40К5 | B78: 12м | C78: С255 | D78: 57837 | E78: 3489.6 | F78: 290.8 | G78: Т | H78: 115858 | L78: 109300
A79: Балка 40Ш1 | B79: 12м | C79: С255 | D79: 57837 | E79: 1063.2 | F79: 88.6 | G79: Т | H79: 93046.8 | L79: 87780
A80: Балка 40Ш2 | B80: 12м | C80: С255 | D80: 57837 | E80: 1280.4 | F80: 106.7 | G80: Т | H80: 93046.8 | L80: 87780
A81: Балка 40Ш2 | B81: 12м | C81: ст3пс5/сп5 | D81: 57837 | E81: 1280.4 | F81: 106.7 | G81: Т | H81: 93046.8 | L81: 87780
A82: Балка 40Ш3 | B82: 12м | C82: С255 | D82: 57837 | E82: 1480.8 | F82: 123.4 | G82: Т | H82: =L82*6%+L82 -> 93046.8 | L82: 87780
A83: Балка 45Б1 | B83: 12м | C83: С255 | D83: 57837 | E83: 794.4 | F83: 66.2 | G83: Т | H83: 93046.8 | L83: 87780
A84: Балка 45Б2 | B84: 12м | C84: С255 | D84: 57837 | E84: 912 | F84: 76 | G84: Т | H84: 93046.8 | L84: 87780
A85: Балка 45М | B85: 12м | C85: С255 | D85: 19425 | E85: 931.2 | F85: 77.6 | G85: Т | H85: 145516.8 | L85: 137280
A86: Балка 45Ш1 | B86: 12м | C86: С255 | D86: 57837 | E86: 1482 | F86: 123.5 | G86: Т | H86: 98336.2 | L86: 92770
A87: Балка 45Ш2 | B87: 12м | C87: С255 | D87: 57837 | E87: 1736.4 | F87: 144.7 | G87: Т | H87: 98336.2 | L87: 92770
A88: Балка 50Б1 | B88: 12м | C88: С255 | D88: 57837 | E88: 870 | F88: 72.5 | G88: Т | H88: 93046.8 | L88: 87780
A89: Балка 50Б2 | B89: 12м | C89: С255 | D89: 57837 | E89: 954 | F89: 79.5 | G89: Т | H89: 93046.8 | L89: 87780
A90: Балка 50Ш1 | B90: 12м | C90: С255 | D90: 57837 | E90: 1370.4 | F90: 114.2 | G90: Т | H90: 93046.8 | L90: 87780
A91: Балка 50Ш2 | B91: 12м | C91: С255 | D91: 57837 | E91: 1660.8 | F91: 138.4 | G91: Т | H91: 98558.8 | L91: 92980
A92: Балка 55Б1 | B92: 12м | C92: С255 | D92: 57837 | E92: 1068 | F92: 89 | G92: Т | H92: 93046.8 | L92: 87780
A93: Балка 55Б2 | B93: 12м | C93: С255 | D93: 57837 | E93: 1174.8 | F93: 97.9 | G93: Т | H93: 93046.8 | L93: 87780
A94: Балка 60Б1 | B94: 12м | C94: С255 | D94: 57837 | E94: 1135.2 | F94: 94.6 | G94: Т | H94: 93046.8 | L94: 87780
A95: Балка 60Б2 | B95: 12м | C95: С255 | D95: 57837 | E95: 1266 | F95: 105.5 | G95: Т | H95: 98558.8 | L95: 92980
A96: Балка 60Ш1 | B96: 12м | C96: С255 | D96: 57837 | E96: 1644 | F96: 137 | G96: Т | H96: 106932.8 | L96: 100880
A97: Балка 60Ш2 | B97: 12м | C97: С255 | D97: 57837 | E97: 2048.4 | F97: 170.7 | G97: Т | H97: 108480.4 | L97: 102340
A98: Балка 70Б1 | B98: 12м | C98: С255 | D98: 57837 | E98: 1551.6 | F98: 129.3 | G98: Т | H98: 91170.6 | L98: 86010
A99: Балка 70Б2 | B99: 12м | C99: С255 | D99: 57837 | E99: 1730.4 | F99: 144.2 | G99: Т | H99: 96566 | L99: 91100
A100: Балка 70Ш1 | B100: 12м | C100: С255 | D100: 57837 | E100: 1992 | F100: 166 | G100: Т | H100: 105385.2 | L100: 99420
A101: Балка 70Ш2 | B101: 12м | C101: С255 | D101: 57837 | E101: 2284.8 | F101: 190.4 | G101: Т | H101: 107038.8 | L101: 100980
A102: Балка НЛГ 10Б1 | B102: 12м | C102: 09г2с | D102: 57837 | E102: 97.2 | F102: 8.1 | G102: Т | H102: 138902.4 | L102: 131040
A103: Балка НЛГ 12Б1 | B103: 12м | C103: 09г2с-15 | D103: 57837 | E103: 104.4 | F103: 8.7 | G103: Т | H103: 139347.6 | L103: 131460
A104: Балка НЛГ 12Б2 | B104: 12м | C104: С345 | D104: 57837 | E104: 124.8 | F104: 10.4 | G104: Т | H104: 139347.6 | L104: 131460
A105: Балка НЛГ 12Б1 | B105: 12м | C105: 09г2с | D105: 57837 | E105: 104.4 | F105: 8.7 | G105: Т | H105: 139347.6 | L105: 131460
A106: Балка НЛГ 12Б2 | B106: 12м | C106: 09г2с | D106: 57837 | E106: 124.8 | F106: 10.4 | G106: Т | H106: 139347.6 | L106: 131460
A107: Балка НЛГ 14Б1 | B107: 12м | C107: 09г2с | D107: 57837 | E107: 126 | F107: 10.5 | G107: Т | H107: 134821.4 | L107: 127190
A108: Балка НЛГ 14Б1 | B108: 12м | C108: 09г2с-15 | D108: 57837 | E108: 126 | F108: 10.5 | G108: Т | H108: 134821.4 | L108: 127190
A109: Балка НЛГ 14Б2 | B109: 12м | C109: 09г2с-15 | D109: 57837 | E109: 154.8 | F109: 12.9 | G109: Т | H109: 134821.4 | L109: 127190
A110: Балка НЛГ 16Б1 | B110: 12м | C110: 09г2с-15 | D110: 57837 | E110: 152.4 | F110: 12.7 | G110: Т | H110: 134821.4 | L110: 127190
A111: Балка НЛГ 16Б2 | B111: 12м | C111: 09г2с-15 | D111: 57837 | E111: 189.6 | F111: 15.8 | G111: Т | H111: 134821.4 | L111: 127190
A112: Балка НЛГ 16Б2 | B112: 12м | C112: 09г2с | D112: 57837 | E112: 189.6 | F112: 15.8 | G112: Т | H112: 134821.4 | L112: 127190
A113: Балка НЛГ 16Б1 | B113: 12м | C113: 09г2с | D113: 57837 | E113: 152.4 | F113: 12.7 | G113: Т | H113: 134821.4 | L113: 127190
A114: Балка НЛГ 16Б2 | B114: 12м | C114: С355 | D114: 57837 | E114: 189.6 | F114: 15.8 | G114: Т | H114: 134821.4 | L114: 127190
A115: Балка НЛГ 16Б1 | B115: 12м | C115: С355 | D115: 57837 | E115: 152.4 | F115: 12.7 | G115: Т | H115: 134821.4 | L115: 127190
A116: Балка НЛГ 18Б1 | B116: 12м | C116: 09г2с | D116: 57837 | E116: 184.8 | F116: 15.4 | G116: Т | H116: 137142.8 | L116: 129380
A117: Балка НЛГ 18Б2 | B117: 12м | C117: С355 | D117: 57837 | E117: 225.6 | F117: 18.8 | G117: Т | H117: 137142.8 | L117: 129380
A118: Балка НЛГ 18Б1 | B118: 12м | C118: С355 | D118: 57837 | E118: 184.8 | F118: 15.4 | G118: Т | H118: 137142.8 | L118: 129380
A119: Балка НЛГ 18Б2 | B119: 12м | C119: 09г2с-15 | D119: 57837 | E119: 225.6 | F119: 18.8 | G119: Т | H119: 137142.8 | L119: 129380
A120: Балка НЛГ 20Б1 | B120: 12м | C120: С355 | D120: 57837 | E120: 255.6 | F120: 21.3 | G120: Т | H120: 119939 | L120: 113150
A121: Балка НЛГ 20Б1 | B121: 12м | C121: 09г2с-15 | D121: 57837 | E121: 255.6 | F121: 21.3 | G121: Т | H121: 119939 | L121: 113150
A122: Балка НЛГ 20Б2 | B122: 12м | C122: С355 | D122: 57837 | E122: 303.6 | F122: 25.3 | G122: Т | H122: 119939 | L122: 113150
A123: Балка НЛГ 20Б2 | B123: 12м | C123: 09г2с | D123: 57837 | E123: 303.6 | F123: 25.3 | G123: Т | H123: 119939 | L123: 113150
A124: Балка НЛГ 20К1 | B124: 12м | C124: С355 | D124: 57837 | E124: 496.8 | F124: 41.4 | G124: Т | H124: 108915 | L124: 102750
A125: Балка НЛГ 20К2 | B125: 12м | C125: 09г2с | D125: 57837 | E125: 598.8 | F125: 49.9 | G125: Т | H125: 108915 | L125: 102750
A126: Балка НЛГ 20К2 | B126: 12м | C126: С355 | D126: 57837 | E126: 598.8 | F126: 49.9 | G126: Т | H126: 108915 | L126: 102750
A127: Балка НЛГ 20Ш1 | B127: 12м | C127: С355 | D127: 57837 | E127: 367.2 | F127: 30.6 | G127: Т | H127: 109466.2 | L127: 103270
A128: Балка НЛГ 20Ш2 | B128: 12м | C128: С355 | D128: 57837 | E128: 465.6 | F128: 38.8 | G128: Т | H128: 109466.2 | L128: 103270
A129: Балка НЛГ 24М | B129: 12м | C129: С355 | D129: 19425 | E129: 459.6 | F129: 38.3 | G129: Т | H129: 152682.4 | L129: 144040
A130: Балка НЛГ 25Б1 | B130: 12м | C130: 09г2с | D130: 57837 | E130: 308.4 | F130: 25.7 | G130: Т | H130: 114098.4 | L130: 107640
A131: Балка НЛГ 25Б1 | B131: 12м | C131: С355 | D131: 57837 | E131: 308.4 | F131: 25.7 | G131: Т | H131: 114098.4 | L131: 107640
A132: Балка НЛГ 25Б2 | B132: 12м | C132: 09г2с-15 | D132: 57837 | E132: 355.2 | F132: 29.6 | G132: Т | H132: 114098.4 | L132: 107640
A133: Балка НЛГ 25Б2 | B133: 12м | C133: С355 | D133: 57837 | E133: 355.2 | F133: 29.6 | G133: Т | H133: 114098.4 | L133: 107640
A134: Балка НЛГ 25К1 | B134: 12м | C134: С355 | D134: 57837 | E134: 751.2 | F134: 62.6 | G134: Т | H134: 106159 | L134: 100150
A135: Балка НЛГ 25К2 | B135: 12м | C135: С355 | D135: 57837 | E135: 868.8 | F135: 72.4 | G135: Т | H135: 106159 | L135: 100150
A136: Балка НЛГ 25Ш1 | B136: 12м | C136: С355 | D136: 57837 | E136: 529.2 | F136: 44.1 | G136: Т | H136: 108363.8 | L136: 102230
A137: Балка НЛГ 25Ш1 | B137: 12м | C137: 09г2с-15 | D137: 57837 | E137: 529.2 | F137: 44.1 | G137: Т | H137: 108363.8 | L137: 102230
A138: Балка НЛГ 25Ш2 | B138: 12м | C138: С355 | D138: 57837 | E138: 645.6 | F138: 53.8 | G138: Т | H138: 108363.8 | L138: 102230
A139: Балка НЛГ 30Б1 | B139: 12м | C139: С355 | D139: 57837 | E139: 384 | F139: 32 | G139: Т | H139: 108915 | L139: 102750
A140: Балка НЛГ 30Б1 | B140: 12м | C140: 09г2с-15 | D140: 57837 | E140: 384 | F140: 32 | G140: Т | H140: 108915 | L140: 102750
A141: Балка НЛГ 30Б2 | B141: 12м | C141: 09г2с | D141: 57837 | E141: 440.4 | F141: 36.7 | G141: Т | H141: 108915 | L141: 102750
A142: Балка НЛГ 30Б2 | B142: 12м | C142: С355 | D142: 57837 | E142: 440.4 | F142: 36.7 | G142: Т | H142: 108915 | L142: 102750
A143: Балка НЛГ 30К1 | B143: 12м | C143: С355 | D143: 57837 | E143: 1044 | F143: 87 | G143: Т | H143: 106159 | L143: 100150
A144: Балка НЛГ 30К2 | B144: 12м | C144: С355 | D144: 57837 | E144: 1128 | F144: 94 | G144: Т | H144: 106159 | L144: 100150
A145: Балка НЛГ 30М | B145: 12м | C145: С355 | D145: 19425 | E145: 602.4 | F145: 50.2 | G145: Т | H145: 154336 | L145: 145600
A146: Балка НЛГ 30Ш1 | B146: 12м | C146: С355 | D146: 57837 | E146: 681.6 | F146: 56.8 | G146: Т | H146: =L146*6%+L146 -> 106159 | L146: 100150
A147: Балка НЛГ 30Ш2 | B147: 12м | C147: С355 | D147: 57837 | E147: 823.2 | F147: 68.6 | G147: Т | H147: 106159 | L147: 100150
A148: Балка НЛГ 35Б1 | B148: 12м | C148: С355 | D148: 57837 | E148: 496.8 | F148: 41.4 | G148: Т | H148: 108363.8 | L148: 102230
A149: Балка НЛГ 35Б2 | B149: 12м | C149: С355 | D149: 57837 | E149: 595.2 | F149: 49.6 | G149: Т | H149: 108363.8 | L149: 102230
A150: Балка НЛГ 35Б2 | B150: 12м | C150: 09г2с-15 | D150: 57837 | E150: 595.2 | F150: 49.6 | G150: Т | H150: 108363.8 | L150: 102230
A151: Балка НЛГ 35К1 | B151: 12м | C151: С355 | D151: 57837 | E151: 1309.2 | F151: 109.1 | G151: Т | H151: 106159 | L151: 100150
A152: Балка НЛГ 35К2 | B152: 12м | C152: С355 | D152: 57837 | E152: 1638 | F152: 136.5 | G152: Т | H152: 111671 | L152: 105350
A153: Балка НЛГ 35Ш1 | B153: 12м | C153: С355 | D153: 57837 | E153: 783.6 | F153: 65.3 | G153: Т | H153: 106159 | L153: 100150
A154: Балка НЛГ 35Ш1 | B154: 12м | C154: 09г2с-15 | D154: 57837 | E154: 783.6 | F154: 65.3 | G154: Т | H154: 106159 | L154: 100150
A155: Балка НЛГ 35Ш2 | B155: 12м | C155: С355 | D155: 57837 | E155: 956.4 | F155: 79.7 | G155: Т | H155: 106159 | L155: 100150
A156: Балка НЛГ 35Ш2 | B156: 12м | C156: 09г2с-15 | D156: 57837 | E156: 956.4 | F156: 79.7 | G156: Т | H156: 106159 | L156: 100150
A157: Балка НЛГ 36М | B157: 12м | C157: С355 | D157: 19425 | E157: 694.8 | F157: 57.9 | G157: Т | H157: 152353.8 | L157: 143730
A158: Балка НЛГ 40Б1 | B158: 12м | C158: С355 | D158: 57837 | E158: 679.2 | F158: 56.6 | G158: Т | H158: 106159 | L158: 100150
A159: Балка НЛГ 40Б1 | B159: 12м | C159: 09г2с-15 | D159: 57837 | E159: 679.2 | F159: 56.6 | G159: Т | H159: 106159 | L159: 100150
A160: Балка НЛГ 40Б2 | B160: 12м | C160: 09г2с-15 | D160: 57837 | E160: 792 | F160: 66 | G160: Т | H160: 106159 | L160: 100150
A161: Балка НЛГ 40Б2 | B161: 12м | C161: С355 | D161: 57837 | E161: 792 | F161: 66 | G161: Т | H161: 106159 | L161: 100150
A162: Балка НЛГ 40К1 | B162: 12м | C162: С355 | D162: 57837 | E162: 1759.2 | F162: 146.6 | G162: Т | H162: 126330.8 | L162: 119180
A163: Балка НЛГ 40К2 | B163: 12м | C163: С355 | D163: 57837 | E163: 2060.4 | F163: 171.7 | G163: Т | H163: 127878.4 | L163: 120640
A164: Балка НЛГ 40Ш1 | B164: 12м | C164: С355 | D164: 57837 | E164: 1063.2 | F164: 88.6 | G164: Т | H164: 105056.6 | L164: 99110
A165: Балка НЛГ 40Ш2 | B165: 12м | C165: 09г2с-15 | D165: 57837 | E165: 1280.4 | F165: 106.7 | G165: Т | H165: 105056.6 | L165: 99110
A166: Балка НЛГ 40Ш2 | B166: 12м | C166: С355 | D166: 57837 | E166: 1280.4 | F166: 106.7 | G166: Т | H166: 105056.6 | L166: 99110
A167: Балка НЛГ 45Б1 | B167: 12м | C167: С355 | D167: 57837 | E167: 794.4 | F167: 66.2 | G167: Т | H167: 105056.6 | L167: 99110
A168: Балка НЛГ 45Б1 | B168: 12м | C168: 09г2с | D168: 57837 | E168: 794.4 | F168: 66.2 | G168: Т | H168: 105056.6 | L168: 99110
A169: Балка НЛГ 45Б2 | B169: 12м | C169: С355 | D169: 57837 | E169: 912 | F169: 76 | G169: Т | H169: 105056.6 | L169: 99110
A170: Балка НЛГ 45М | B170: 12м | C170: 09г2с-15 | D170: 19425 | E170: 931.2 | F170: 77.6 | G170: Т | H170: 153233.6 | L170: 144560
A171: Балка НЛГ 45М | B171: 12м | C171: С355 | D171: 19425 | E171: 931.2 | F171: 77.6 | G171: Т | H171: 153233.6 | L171: 144560
A172: Балка НЛГ 45Ш1 | B172: 12м | C172: 09г2с | D172: 57837 | E172: 1482 | F172: 123.5 | G172: Т | H172: 110346 | L172: 104100
A173: Балка НЛГ 45Ш1 | B173: 12м | C173: С355 | D173: 57837 | E173: 1482 | F173: 123.5 | G173: Т | H173: 110346 | L173: 104100
A174: Балка НЛГ 45Ш2 | B174: 12м | C174: С355 | D174: 57837 | E174: 1736.4 | F174: 144.7 | G174: Т | H174: 110346 | L174: 104100
A175: Балка НЛГ 50Б1 | B175: 12м | C175: С355 | D175: 57837 | E175: 870 | F175: 72.5 | G175: Т | H175: 105056.6 | L175: 99110
A176: Балка НЛГ 50Б2 | B176: 12м | C176: С355 | D176: 57837 | E176: 954 | F176: 79.5 | G176: Т | H176: 105056.6 | L176: 99110
A177: Балка НЛГ 50Ш1 | B177: 12м | C177: С355 | D177: 57837 | E177: 1370.4 | F177: 114.2 | G177: Т | H177: 105056.6 | L177: 99110
A178: Балка НЛГ 50Ш2 | B178: 12м | C178: С355 | D178: 57837 | E178: 1660.8 | F178: 138.4 | G178: Т | H178: 110568.6 | L178: 104310
A179: Балка НЛГ 55Б1 | B179: 12м | C179: С355 | D179: 57837 | E179: 1068 | F179: 89 | G179: Т | H179: 105056.6 | L179: 99110
A180: Балка НЛГ 55Б2 | B180: 12м | C180: С355 | D180: 57837 | E180: 1174.8 | F180: 97.9 | G180: Т | H180: 105056.6 | L180: 99110
A181: Балка НЛГ 60Б1 | B181: 12м | C181: С355 | D181: 57837 | E181: 1135.2 | F181: 94.6 | G181: Т | H181: 105056.6 | L181: 99110
A182: Балка НЛГ 60Б2 | B182: 12м | C182: С355 | D182: 57837 | E182: 1266 | F182: 105.5 | G182: Т | H182: 110568.6 | L182: 104310
A183: Балка НЛГ 60Ш1 | B183: 12м | C183: С355 | D183: 57837 | E183: 1644 | F183: 137 | G183: Т | H183: 118953.2 | L183: 112220
A184: Балка НЛГ 60Ш2 | B184: 12м | C184: С355 | D184: 57837 | E184: 2048.4 | F184: 170.7 | G184: Т | H184: 120606.8 | L184: 113780
A185: Балка НЛГ 70Б1 | B185: 12м | C185: С355 | D185: 57837 | E185: 1551.6 | F185: 129.3 | G185: Т | H185: 103180.4 | L185: 97340
A186: Балка НЛГ 70Б2 | B186: 12м | C186: С355 | D186: 57837 | E186: 1730.4 | F186: 144.2 | G186: Т | H186: 108586.4 | L186: 102440
A187: Балка НЛГ 70Ш1 | B187: 12м | C187: С355 | D187: 57837 | E187: 1992 | F187: 166 | G187: Т | H187: 117405.6 | L187: 110760
A188: Балка НЛГ 70Ш2 | B188: 12м | C188: С355 | D188: 57837 | E188: 2284.8 | F188: 190.4 | G188: Т | H188: 119059.2 | L188: 112320
A190: Внимание! Цены справочные, актуальные запрашивать в отделах продаж
A191: Цены указаны при условии 100% предоплаты. Условия рассрочки оплаты согласовываются индивидуально
A192: Компания предоставляет услуги:
A193: *Размотка бухтовой арматуры, круга
A194: *Доставка автотранспортом
A195: *Резка кругом, газом, лазером (в т.ч. давальческого сырья)
A196: *Рубка на гильотине (в т.ч. давальческого сырья)
A197: *Гибка листов, покраска и сверление металла
A198: *Ответ хранение металла в крытом складе
A199: *Чистка труб
A200: *Взвешивание транспорта по запросу
A201: *Прайс-лист носит информационный характер и не является публичной офертой. Стоимость товаров, другие виды товаров, их наличие и подробные характеристики уточняйте у вашего менеджера или по телефону +7 (342) 219-56-60 или zakaz@kvin.ru

Sheet Квадрат
K6: Квадрат
A9: На Главную
A10: ПРАЙС-ЛИСТ на Квадрат
A12: Цены указаны с НДС от 1 тонны
A13: Наименование | B13: Мерность | C13: Марка стали | D13: Гост | E13: Вес 1 шт, кг | F13: Вес 1 пм, кг | G13: ЕИ | H13: Цена р/т | I13: Цена р/т | J13: Цена р/т
A15: Квадрат 16 | C15: ст3пс/сп | D15: 2591 | E15: 12.5 | F15: 2.01 | G15: Т | H15: =L15*6%+L15 -> 78429.4 | L15: 73990
A16: Квадрат 20 | C16: ст3пс/сп | D16: 2591 | E16: 20 | F16: 3.14 | G16: Т | H16: =L16*6%+L16 -> 80973.4 | L16: 76390
A17: Квадрат 25 | C17: ст3пс/сп | D17: 2591 | E17: 0 | F17: 4.91 | G17: Т | H17: 80867.4 | L17: 76290
A18: Квадрат 30 | C18: ст3пс/сп | D18: 2591 | E18: 0 | F18: 7.06 | G18: Т | H18: 84185.2 | L18: 79420
A19: Квадрат 40 | C19: ст20 | D19: 2591 | E19: 0 | F19: 12.56 | G19: Т | H19: 84185.2 | L19: 79420
A20: Квадрат 40 | C20: ст3пс/сп | D20: 2591 | E20: 0 | F20: 12.56 | G20: Т | H20: 84185.2 | L20: 79420
A21: Квадрат 50 | C21: ст20 | D21: 2591 | E21: 0 | F21: 19.62 | G21: Т | H21: 84185.2 | L21: 79420
A22: Квадрат 50 | C22: ст3пс/сп | D22: 2591 | E22: 0 | F22: 19.62 | G22: Т | H22: 84185.2 | L22: 79420
A23: Квадрат 50 | C23: ст45 | D23: 2591 | E23: 0 | F23: 19.62 | G23: Т | H23: 84185.2 | L23: 79420
A24: Квадрат 60 | C24: ст3пс/сп | D24: 2591 | E24: 0 | F24: 28.26 | G24: Т | H24: 84185.2 | L24: 79420
A25: Квадрат 70 | C25: ст3пс/сп | D25: 2591 | E25: 0 | F25: 38.46 | G25: Т | H25: 84185.2 | L25: 79420
A26: Квадрат 80 | C26: ст20 | D26: 2591 | E26: 0 | F26: 50.24 | G26: Т | H26: 84185.2 | L26: 79420
A29: Внимание! Цены справочные, актуальные запрашивать в отделах продаж
A30: Цены указаны при условии 100% предоплаты. Условия рассрочки оплаты согласовываются индивидуально
A31: Компания предоставляет услуги:
A32: *Размотка бухтовой арматуры, круга
A33: *Доставка автотранспортом
A34: *Резка кругом, газом, лазером (в т.ч. давальческого сырья)
A35: *Рубка на гильотине (в т.ч. давальческого сырья)
A36: *Гибка листов, покраска и сверление металла
A37: *Ответ хранение металла в крытом складе
A38: *Чистка труб
A39: *Взвешивание транспорта по запросу
A40: *Прайс-лист носит информационный характер и не является публичной офертой. Стоимость товаров, другие виды товаров, их наличие и подробные характеристики уточняйте у вашего менеджера или по телефону +7 (342) 219-56-60 или zakaz@kvin.ru

Sheet Круг конструкц. и легир.
K6: Круг конструкц. и легир.
A8: На Главную
A9: ПРАЙС-ЛИСТ на Круг
A11: Цены указаны с НДС от 1 тонны
A12: Наименование | B12: Мерность | C12: Марка стали | D12: Гост | E12: Вес 1 шт, кг | F12: Вес 1 пм, кг | G12: ЕИ | H12: Цена р/т | I12: Цена р/т | J12: Цена р/т
A14: Круг 22 | B14: 6м | C14: ст45 | D14: 2590 | E14: 17.88 | F14: 2.98 | G14: Т | H14: =L14*6%+L14 -> 66462 | L14: 62700
A15: Круг 22 | B15: 6м | C15: ст20 | D15: 2590 | E15: 17.88 | F15: 2.98 | G15: Т | H15: =L15*6%+L15 -> 66462 | L15: 62700
A16: Круг 24 | B16: 6м | C16: ст45 | D16: 2590 | E16: 21.3 | F16: 3.55 | G16: Т | H16: 66462 | L16: 62700
A17: Круг 24 | B17: 6м | C17: ст20 | D17: 2590 | E17: 21.3 | F17: 3.55 | G17: Т | H17: 66462 | L17: 62700
A18: Круг 28 | B18: 6м | C18: ст20 | D18: 2590 | E18: 28.98 | F18: 4.83 | G18: Т | H18: 66462 | L18: 62700
A19: Круг 30 | B19: 6м | C19: ст35 | D19: 2590 | E19: 33.3 | F19: 5.55 | G19: Т | H19: 66462 | L19: 62700
A20: Круг 30 | B20: 6м | C20: ст45 | D20: 2590 | E20: 33.3 | F20: 5.55 | G20: Т | H20: 66462 | L20: 62700
A21: Круг 30 | B21: 6м | C21: ст20 | D21: 2590 | E21: 33.3 | F21: 5.55 | G21: Т | H21: 66462 | L21: 62700
A22: Круг 36 | B22: 6м | C22: ст20 | D22: 2590 | E22: 47.94 | F22: 7.99 | G22: Т | H22: 66462 | L22: 62700
A23: Круг 40 | B23: 6м | C23: ст45 | D23: 2590 | E23: 62 | F23: 9.86 | G23: Т | H23: 66462 | L23: 62700
A24: Круг 40 | B24: 6м | C24: ст20 | D24: 2590 | E24: 59.16 | F24: 9.86 | G24: Т | H24: 66462 | L24: 62700
A25: Круг 40 | B25: 6м | C25: ст3пс5/сп5 | D25: 2590 | E25: 59.16 | F25: 9.86 | G25: Т | H25: 66462 | L25: 62700
A26: Круг 45 | B26: 6м | C26: ст45 | D26: 2590 | E26: 74.88 | F26: 12.48 | G26: Т | H26: 66462 | L26: 62700
A27: Круг 50 | B27: 6м | C27: ст45 | D27: 2590 | E27: 95 | F27: 15.41 | G27: Т | H27: 66462 | L27: 62700
A28: Круг 50 | B28: 6м | C28: ст20 | D28: 2590 | E28: 92.46 | F28: 15.41 | G28: Т | H28: 66462 | L28: 62700
A29: Круг 50 | B29: 6м | C29: ст3пс5/сп5 | D29: 2590 | E29: 92.46 | F29: 15.41 | G29: Т | H29: 66462 | L29: 62700
A30: Круг 16 | B30: 6м | C30: 09г2с | D30: 2590 | E30: 9.48 | F30: 1.58 | G30: Т | H30: 87725.6 | L30: 82760
A31: Круг 18 | B31: 6м | C31: 09г2с | D31: 2590 | E31: 12 | F31: 2 | G31: Т | H31: 87725.6 | L31: 82760
A32: Круг 22 | B32: 6м | C32: 09г2с | D32: 2590 | E32: 17.88 | F32: 2.98 | G32: Т | H32: 87725.6 | L32: 82760
A33: Круг 24 | B33: 6м | C33: 09г2с | D33: 2590 | E33: 21.3 | F33: 3.55 | G33: Т | H33: 87725.6 | L33: 82760
A34: Круг 36 | B34: 6м | C34: 09г2с | D34: 2590 | E34: 47.94 | F34: 7.99 | G34: Т | H34: 87725.6 | L34: 82760
A35: Круг 40 | B35: 6м | C35: 40х | D35: 2590 | E35: 59.16 | F35: 9.86 | G35: Т | H35: 85510.2 | L35: 80670
A36: Круг 50 | B36: 6м | C36: 09г2с | D36: 2590 | E36: 92.46 | F36: 15.41 | G36: Т | H36: 87725.6 | L36: 82760
A38: Внимание! Цены справочные, актуальные запрашивать в отделах продаж
A39: Цены указаны при условии 100% предоплаты. Условия рассрочки оплаты согласовываются индивидуально
A40: Компания предоставляет услуги:
A41: *Размотка бухтовой арматуры, круга
A42: *Доставка автотранспортом
A43: *Резка кругом, газом, лазером (в т.ч. давальческого сырья)
A44: *Рубка на гильотине (в т.ч. давальческого сырья)
A45: *Гибка листов, покраска и сверление металла
A46: *Ответ хранение металла в крытом складе
A47: *Чистка труб
A48: *Взвешивание транспорта по запросу
A49: *Прайс-лист носит информационный характер и не является публичной офертой. Стоимость товаров, другие виды товаров, их наличие и подробные характеристики уточняйте у вашего менеджера или по телефону +7 (342) 219-56-60 или zakaz@kvin.ru

Sheet Лист Г К 1.5-12
K6: Лист Г К 1.5-12
A8: На Главную
A9: ПРАЙС-ЛИСТ на Лист Рифленый
A11: Цены указаны с НДС от 1 тонны
A12: Наименование | B12: Мерность | C12: Марка стали | D12: Гост | E12: Вес 1 шт, кг | F12: Вес 1 пм, кг | G12: ЕИ | H12: Цена р/т | I12: Цена р/т | J12: Цена р/т
A14: Лист рифл 5 | B14: 1.5м 6м | C14: ст3пс/сп | D14: 8568 | E14: 365 | F14: 40.5 | G14: Т | H14: =L14*6%+L14 -> 70553.6 | L14: 66560
A15: Лист рифл 5 | B15: 1.5м 6м | C15: ст3пс/сп | D15: 8568 | E15: 391.3 | F15: 41.8 | G15: Т | H15: =L15*6%+L15 -> 67797.6 | L15: 63960
A16: Лист рифл 6 | B16: 1.5м 6м | C16: ст3пс/сп | D16: 8568 | E16: 440 | F16: 48.5 | G16: Т | H16: 70553.6 | L16: 66560
A17: Лист рифл 6 | B17: 1.5м 6м | C17: ст3пс/сп | D17: 8568 | E17: 448 | F17: 49.7 | G17: Т | H17: 66695.2 | L17: 62920
A18: Лист рифл 8 | B18: 1.5м 6м | C18: ст3пс/сп | D18: 8568 | E18: 594 | F18: 66 | G18: Т | H18: 72207.2 | L18: 68120
A19: Лист рифл 8 | B19: 1.5м 6м | C19: ст3пс/сп | D19: 8568 | E19: 585 | F19: 64.9 | G19: Т | H19: 70002.4 | L19: 66040
A20: Лист рифл 10 | B20: 1.5м 6м | C20: ст3пс/сп | D20: 8568 | E20: 747 | F20: 83 | G20: Т | H20: 71104.8 | L20: 67080
A21: Лист рифл 10 | B21: 1.5м 6м | C21: ст3пс/сп | D21: 8568 | E21: 728.1 | F21: 80.9 | G21: Т | H21: 75514.4 | L21: 71240
A22: Лист рифл 12 | B22: 1.5м 6м | C22: ст3пс/сп | D22: 8568 | E22: 893.7 | F22: 99.3 | G22: Т | H22: 72758.4 | L22: 68640
A25: Внимание! Цены справочные, актуальные запрашивать в отделах продаж
A26: Цены указаны при условии 100% предоплаты. Условия рассрочки оплаты согласовываются индивидуально
A27: Компания предоставляет услуги:
A28: *Размотка бухтовой арматуры, круга
A29: *Доставка автотранспортом
A30: *Резка кругом, газом, лазером (в т.ч. давальческого сырья)
A31: *Рубка на гильотине (в т.ч. давальческого сырья)
A32: *Гибка листов, покраска и сверление металла
A33: *Ответ хранение металла в крытом складе
A34: *Чистка труб
A35: *Взвешивание транспорта по запросу
A36: *Прайс-лист носит информационный характер и не является публичной офертой. Стоимость товаров, другие виды товаров, их наличие и подробные характеристики уточняйте у вашего менеджера или по телефону +7 (342) 219-56-60 или zakaz@kvin.ru

Sheet Лист Г К НЛГ 1.5-12
K6: Лист Г К НЛГ 1.5-12
A8: Внимание! Цены справочные, актуальные запрашивать в отделах продаж
A9: Цены указаны при условии 100% предоплаты. Условия рассрочки оплаты согласовываются индивидуально
A11: На Главную
A12: ПРАЙС-ЛИСТ на Лист НЛГ
A14: Цены указаны с НДС от 1 тонны
A15: Наименование | B15: Мерность | C15: Марка стали | D15: Гост | E15: Вес 1 шт, кг | F15: Вес 1 пм, кг | G15: ЕИ | H15: Цена р/т | I15: Цена р/т | J15: Цена р/т
A17: Лист НЛГ 2 | B17: 1.25м 2.5м | C17: 09г2с | D17: 17066 | E17: 52 | F17: 15.7 | G17: Т | H17: =L17*6%+L17 -> 77168 | L17: 72800
A18: Лист НЛГ 3 | B18: 1.5м 6м | C18: 09г2с | D18: 19281 | E18: 211.95 | F18: 23.55 | G18: Т | H18: =L18*6%+L18 -> 76065.6 | L18: 71760
A19: Лист НЛГ 3 | B19: 1.5м 6м | C19: 09г2с-15 | D19: 19281 | E19: 223 | F19: 23.55 | G19: Т | H19: 76065.6 | L19: 71760
A20: Лист НЛГ 3 | B20: 1.25м 2.5м | C20: 09г2с-15 | D20: 19281 | E20: 78 | F20: 23.55 | G20: Т | H20: 76065.6 | L20: 71760
A21: Лист НЛГ 4 | B21: 1.5м 6м | C21: 09г2с | D21: 19281 | E21: 282.6 | F21: 31.4 | G21: Т | H21: 72758.4 | L21: 68640
A22: Лист НЛГ 4 | B22: 1.5м 6м | C22: 09г2с-15 | D22: 19281 | E22: 290 | F22: 31.4 | G22: Т | H22: 72758.4 | L22: 68640
A23: Лист НЛГ 5 | B23: 1.5м 6м | C23: 09г2с-15 | D23: 19281 | E23: 360 | F23: 39.25 | G23: Т | H23: 68348.8 | L23: 64480
A24: Лист НЛГ 5 | B24: 1.5м 6м | C24: 10хснд | D24: 19281 | E24: 353.25 | F24: 39.25 | G24: Т | H24: 114649.6 | L24: 108160
A25: Лист НЛГ 6 | B25: 2м 6м | C25: 09г2с | D25: 19281 | E25: 565.2 | F25: 47.1 | G25: Т | H25: 73860.8 | L25: 69680
A26: Лист НЛГ 6 | B26: 1.5м 3м | C26: 09г2с-15 | D26: 19281 | E26: 220 | F26: 47.1 | G26: Т | H26: 74412 | L26: 70200
A27: Лист НЛГ 6 | B27: 1.5м 6м | C27: 09г2с | D27: 19281 | E27: 423.9 | F27: 47.1 | G27: Т | H27: 74412 | L27: 70200
A28: Лист НЛГ 6 | B28: 1.5м 6м | C28: 09г2с-15 | D28: 19281 | E28: 433 | F28: 47.1 | G28: Т | H28: 73860.8 | L28: 69680
A29: Лист НЛГ 6 | B29: 2м 6м | C29: 09г2с-15 | D29: 19281 | E29: 565.2 | F29: 47.1 | G29: Т | H29: 74412 | L29: 70200
A30: Лист НЛГ 6 | B30: 1.5м 6м | C30: 10хснд | D30: 19281 | E30: 423.9 | F30: 47.1 | G30: Т | H30: 114649.6 | L30: 108160
A31: Лист НЛГ 8 | B31: 2м 6м | C31: 09г2с-15 | D31: 19281 | E31: 753.6 | F31: 62.8 | G31: Т | H31: 65041.6 | L31: 61360
A32: Лист НЛГ 8 | B32: 1.5м 6м | C32: 09г2с-15 | D32: 19281 | E32: 577 | F32: 62.8 | G32: Т | H32: 65041.6 | L32: 61360
A33: Лист НЛГ 8 | B33: 1.5м 6м | C33: 09г2с | D33: 19281 | E33: 565.2 | F33: 62.8 | G33: Т | H33: 65592.8 | L33: 61880
A34: Лист НЛГ 8 | B34: 1.5м 3м | C34: 09г2с-15 | D34: 19281 | E34: 282.6 | F34: 62.8 | G34: Т | H34: 65041.6 | L34: 61360
A35: Лист НЛГ 8 | B35: 1.5м 6м | C35: 10хснд | D35: 19281 | E35: 565.2 | F35: 62.8 | G35: Т | H35: 114649.6 | L35: 108160
A36: Лист НЛГ 10 | B36: 1.5м 6м | C36: 09г2с | D36: 19281 | E36: 706.5 | F36: 78.5 | G36: Т | H36: 65041.6 | L36: 61360
A37: Лист НЛГ 10 | B37: 1.5м 6м | C37: 09г2с-15 | D37: 19281 | E37: 715 | F37: 78.5 | G37: Т | H37: 66144 | L37: 62400
A38: Лист НЛГ 10 | B38: 2м 6м | C38: 09г2с-15 | D38: 19281 | E38: 960 | F38: 78.5 | G38: Т | H38: 66144 | L38: 62400
A39: Лист НЛГ 10 | B39: 2м 6м | C39: 09г2с | D39: 19281 | E39: 942 | F39: 78.5 | G39: Т | H39: 65041.6 | L39: 61360
A40: Лист НЛГ 10 | B40: 1.5м 6м | C40: 10хснд | D40: 19281 | E40: 706.5 | F40: 78.5 | G40: Т | H40: 114649.6 | L40: 108160
A41: Лист НЛГ 12 | B41: 1.5м 6м | C41: 09г2с-15 | D41: 19281 | E41: 873 | F41: 94.2 | G41: Т | H41: 65592.8 | L41: 61880
A42: Лист НЛГ 12 | B42: 2м 6м | C42: 09г2с-15 | D42: 19281 | E42: 1130.4 | F42: 94.2 | G42: Т | H42: 65041.6 | L42: 61360
A43: Лист НЛГ 12 | B43: 2м 6м | C43: 09г2с | D43: 19281 | E43: 1130.4 | F43: 94.2 | G43: Т | H43: 65592.8 | L43: 61880
A44: Лист НЛГ 12 | B44: 1.5м 6м | C44: 09г2с | D44: 19281 | E44: 847.8 | F44: 94.2 | G44: Т | H44: 65041.6 | L44: 61360
A46: Компания предоставляет услуги:
A47: *Размотка бухтовой арматуры, круга
A48: *Доставка автотранспортом
A49: *Резка кругом, газом, лазером (в т.ч. давальческого сырья)
A50: *Рубка на гильотине (в т.ч. давальческого сырья)
A51: *Гибка листов, покраска и сверление металла
A52: *Ответ хранение металла в крытом складе
A53: *Чистка труб
A54: *Взвешивание транспорта по запросу
A55: *Прайс-лист носит информационный характер и не является публичной офертой. Стоимость товаров, другие виды товаров, их наличие и подробные характеристики уточняйте у вашего менеджера или по телефону +7 (342) 219-56-60 или zakaz@kvin.ru

Sheet Лист Г К >12
K6: Лист Г К >12
A9: На Главную
A10: ПРАЙС-ЛИСТ на Лист Г/К
A12: Цены указаны с НДС от 1 тонны
A13: Наименование | B13: Мерность | C13: Марка стали | D13: Гост | E13: Вес 1 шт, кг | F13: Вес 1 пм, кг | G13: ЕИ | H13: Цена р/т | I13: Цена р/т | J13: Цена р/т
A15: Лист Г/К 22 | B15: 1.5м 6м | C15: ст3пс5/сп5 | D15: 14637 | E15: 1554.3 | F15: 172.7 | G15: Т | H15: =L15*6%+L15 -> 61077.2 | L15: 57620
A16: Лист Г/К 22 | B16: 2м 6м | C16: ст3пс5/сп5 | D16: 14637 | E16: 2072.4 | F16: 172.7 | G16: Т | H16: =L16*6%+L16 -> 60526 | L16: 57100
A17: Лист Г/К 25 | B17: 1.5м 6м | C17: ст3пс5/сп5 | D17: 14637 | E17: 1785 | F17: 196.25 | G17: Т | H17: 60632 | L17: 57200
A18: Лист Г/К 25 | B18: 2м 6м | C18: ст3пс5/сп5 | D18: 14637 | E18: 2355 | F18: 196.25 | G18: Т | H18: 61734.4 | L18: 58240
A19: Лист Г/К 28 | B19: 1.5м 6м | C19: ст3пс5/сп5 | D19: 14637 | E19: 1978.2 | F19: 219.8 | G19: Т | H19: 60526 | L19: 57100
A20: Лист Г/К 30 | B20: 2м 6м | C20: ст3пс5/сп5 | D20: 14637 | E20: 2826 | F20: 235.5 | G20: Т | H20: 60080.8 | L20: 56680
A21: Лист Г/К 30 | B21: 1.5м 6м | C21: ст3пс5/сп5 | D21: 14637 | E21: 2180 | F21: 235.5 | G21: Т | H21: 61183.2 | L21: 57720
A22: Лист Г/К 32 | B22: 1.5м 6м | C22: ст3пс5/сп5 | D22: 14637 | E22: 2260.8 | F22: 251.2 | G22: Т | H22: 60080.8 | L22: 56680
A23: Лист Г/К 36 | B23: 1.5м 6м | C23: ст3пс5/сп5 | D23: 14637 | E23: 2543.4 | F23: 282.6 | G23: Т | H23: 60080.8 | L23: 56680
A24: Лист Г/К 36 | B24: 2м 6м | C24: ст3пс5/сп5 | D24: 14637 | E24: 3391.2 | F24: 282.6 | G24: Т | H24: 61183.2 | L24: 57720
A25: Лист Г/К 40 | B25: 1.5м 6м | C25: ст3пс5/сп5 | D25: 14637 | E25: 2855 | F25: 314 | G25: Т | H25: 60632 | L25: 57200
A26: Лист Г/К 45 | B26: 1.5м 6м | C26: ст3пс5/сп5 | D26: 14637 | E26: 3179.3 | F26: 353.25 | G26: Т | H26: 62179.6 | L26: 58660
A27: Лист Г/К 50 | B27: 1.5м 6м | C27: ст3пс5/сп5 | D27: 14637 | E27: 3532.5 | F27: 392.5 | G27: Т | H27: 61734.4 | L27: 58240
A28: Лист Г/К 50 | B28: 2м 6м | C28: ст3пс5/сп5 | D28: 14637 | E28: 4710 | F28: 392.5 | G28: Т | H28: 60632 | L28: 57200
A29: Лист Г/К 60 | B29: 1.5м 6м | C29: ст3пс5/сп5 | D29: 14637 | E29: 4239 | F29: 471 | G29: Т | H29: 77274 | L29: 72900
A30: Лист Г/К 70 | B30: 1.5м 6м | C30: ст3пс5/сп5 | D30: 14637 | E30: 4945.5 | F30: 549.5 | G30: Т | H30: 88298 | L30: 83300
A31: Лист Г/К 80 | B31: 1.5м 6м | C31: ст3пс5/сп5 | D31: 14637 | E31: 5652 | F31: 628 | G31: Т | H31: 88298 | L31: 83300
A32: Лист Г/К 90 | B32: 1.5м 6м | C32: ст3пс5/сп5 | D32: 14637 | E32: 6358.5 | F32: 706.5 | G32: Т | H32: 88298 | L32: 83300
A34: Внимание! Цены справочные, актуальные запрашивать в отделах продаж
A35: Цены указаны при условии 100% предоплаты. Условия рассрочки оплаты согласовываются индивидуально
A36: Компания предоставляет услуги:
A37: *Размотка бухтовой арматуры, круга
A38: *Доставка автотранспортом
A39: *Резка кругом, газом, лазером (в т.ч. давальческого сырья)
A40: *Рубка на гильотине (в т.ч. давальческого сырья)
A41: *Гибка листов, покраска и сверление металла
A42: *Ответ хранение металла в крытом складе
A43: *Чистка труб
A44: *Взвешивание транспорта по запросу
A45: *Прайс-лист носит информационный характер и не является публичной офертой. Стоимость товаров, другие виды товаров, их наличие и подробные характеристики уточняйте у вашего менеджера или по телефону +7 (342) 219-56-60 или zakaz@kvin.ru

Sheet Лист Г К НЛГ >12
K6: Лист Г К НЛГ >12
A8: Внимание! Цены справочные, актуальные запрашивать в отделах продаж
A9: Цены указаны при условии 100% предоплаты. Условия рассрочки оплаты согласовываются индивидуально
A11: На Главную
A12: ПРАЙС-ЛИСТ на ЛИСТ НЛГ
A14: Цены указаны с НДС от 1 тонны
A15: Наименование | B15: Мерность | C15: Марка стали | D15: Гост | E15: Вес 1 шт, кг | F15: Вес 1 пм, кг | G15: ЕИ | H15: Цена р/т | I15: Цена р/т | J15: Цена р/т
A17: Лист НЛГ 14 | B17: 1.5м 6м | C17: 09г2с | D17: 19281 | E17: 989.1 | F17: 109.9 | G17: Т | H17: =L17*6%+L17 -> 65592.8 | L17: 61880
A18: Лист НЛГ 14 | B18: 2м 6м | C18: 09г2с | D18: 19281 | E18: 1318.8 | F18: 109.9 | G18: Т | H18: =L18*6%+L18 -> 65592.8 | L18: 61880
A19: Лист НЛГ 14 | B19: 1.5м 6м | C19: 09г2с-15 | D19: 19281 | E19: 990 | F19: 109.9 | G19: Т | H19: 66144 | L19: 62400
A20: Лист НЛГ 14 | B20: 1.5м 6м | C20: 10хснд | D20: 19281 | E20: 989.1 | F20: 109.9 | G20: Т | H20: 109137.6 | L20: 102960
A21: Лист НЛГ 16 | B21: 2м 6м | C21: 09г2с-15 | D21: 19281 | E21: 1507.2 | F21: 125.6 | G21: Т | H21: 65592.8 | L21: 61880
A22: Лист НЛГ 16 | B22: 1.5м 6м | C22: 09г2с-15 | D22: 19281 | E22: 1137 | F22: 125.6 | G22: Т | H22: 66144 | L22: 62400
A23: Лист НЛГ 16 | B23: 1.5м 6м | C23: 09г2с | D23: 19281 | E23: 1130.4 | F23: 125.6 | G23: Т | H23: 65592.8 | L23: 61880
A24: Лист НЛГ 16 | B24: 2м 6м | C24: 09г2с | D24: 19281 | E24: 1507.2 | F24: 125.6 | G24: Т | H24: 66144 | L24: 62400
A25: Лист НЛГ 18 | B25: 1.5м 6м | C25: 09г2с-15 | D25: 19281 | E25: 1271.7 | F25: 141.3 | G25: Т | H25: 66144 | L25: 62400
A26: Лист НЛГ 18 | B26: 1.5м 6м | C26: 09г2с | D26: 19281 | E26: 1271.7 | F26: 141.3 | G26: Т | H26: 66144 | L26: 62400
A27: Лист НЛГ 20 | B27: 1.5м 6м | C27: 09г2с | D27: 19281 | E27: 1428 | F27: 157 | G27: Т | H27: 66144 | L27: 62400
A28: Лист НЛГ 20 | B28: 2м 6м | C28: 09г2с-15 | D28: 19281 | E28: 1884 | F28: 157 | G28: Т | H28: 67246.4 | L28: 63440
A29: Лист НЛГ 20 | B29: 2м 6м | C29: 09г2с | D29: 19281 | E29: 1884 | F29: 157 | G29: Т | H29: 66144 | L29: 62400
A30: Лист НЛГ 20 | B30: 1.5м 6м | C30: 09г2с-15 | D30: 19281 | E30: 1428 | F30: 157 | G30: Т | H30: 67246.4 | L30: 63440
A31: Лист НЛГ 20 | B31: 1.5м 6м | C31: 10хснд | D31: 19281 | E31: 1413 | F31: 157 | G31: Т | H31: 119939 | L31: 113150
A32: Лист НЛГ 22 | B32: 2м 6м | C32: 09г2с-15 | D32: 19281 | E32: 2072.4 | F32: 172.7 | G32: Т | H32: 66144 | L32: 62400
A33: Лист НЛГ 22 | B33: 1.5м 6м | C33: 09г2с-15 | D33: 19281 | E33: 1554.3 | F33: 172.7 | G33: Т | H33: 67246.4 | L33: 63440
A34: Лист НЛГ 22 | B34: 2м 6м | C34: 09г2с | D34: 19281 | E34: 2072.4 | F34: 172.7 | G34: Т | H34: 66144 | L34: 62400
A35: Лист НЛГ 22 | B35: 1.5м 6м | C35: 09г2с | D35: 19281 | E35: 1554.3 | F35: 172.7 | G35: Т | H35: 67246.4 | L35: 63440
A36: Лист НЛГ 25 | B36: 1.5м 6м | C36: 09г2с | D36: 19281 | E36: 1766.3 | F36: 196.25 | G36: Т | H36: 66144 | L36: 62400
A37: Лист НЛГ 25 | B37: 1.5м 6м | C37: 09г2с-15 | D37: 19281 | E37: 1785 | F37: 196.25 | G37: Т | H37: 67246.4 | L37: 63440
A38: Лист НЛГ 25 | B38: 2м 6м | C38: 09г2с-15 | D38: 19281 | E38: 2355 | F38: 196.25 | G38: Т | H38: 66144 | L38: 62400
A39: Лист НЛГ 25 | B39: 1.5м 6м | C39: 10хснд | D39: 19281 | E39: 1766.3 | F39: 196.25 | G39: Т | H39: 119939 | L39: 113150
A40: Лист НЛГ 30 | B40: 2м 6м | C40: 09г2с | D40: 19281 | E40: 2826 | F40: 235.5 | G40: Т | H40: 66144 | L40: 62400
A41: Лист НЛГ 30 | B41: 1.5м 6м | C41: 09г2с | D41: 19281 | E41: 2119.5 | F41: 235.5 | G41: Т | H41: 66144 | L41: 62400
A42: Лист НЛГ 30 | B42: 1.5м 6м | C42: 09г2с-15 | D42: 19281 | E42: 2142 | F42: 235.5 | G42: Т | H42: 66144 | L42: 62400
A43: Лист НЛГ 30 | B43: 2м 6м | C43: 09г2с-15 | D43: 19281 | E43: 2826 | F43: 235.5 | G43: Т | H43: 66144 | L43: 62400
A44: Лист НЛГ 30 | B44: 1.5м 6м | C44: 10хснд | D44: 19281 | E44: 2119.5 | F44: 235.5 | G44: Т | H44: 119939 | L44: 113150
A45: Лист НЛГ 32 | B45: 1.5м 6м | C45: 09г2с | D45: 19281 | E45: 2260.8 | F45: 251.2 | G45: Т | H45: 66144 | L45: 62400
A46: Лист НЛГ 36 | B46: 1.5м 6м | C46: 09г2с | D46: 19281 | E46: 2543.4 | F46: 282.6 | G46: Т | H46: 64935.6 | L46: 61260
A47: Лист НЛГ 36 | B47: 1.5м 6м | C47: 09г2с-15 | D47: 19281 | E47: 2543.4 | F47: 282.6 | G47: Т | H47: 66144 | L47: 62400
A48: Лист НЛГ 40 | B48: 1.5м 6м | C48: 09г2с | D48: 19281 | E48: 2826 | F48: 314 | G48: Т | H48: 67246.4 | L48: 63440
A49: Лист НЛГ 40 | B49: 2м 6м | C49: 09г2с | D49: 19281 | E49: 3768 | F49: 314 | G49: Т | H49: 68348.8 | L49: 64480
A50: Лист НЛГ 40 | B50: 1.5м 6м | C50: 09г2с-15 | D50: 19281 | E50: 2855 | F50: 314 | G50: Т | H50: 67246.4 | L50: 63440
A51: Лист НЛГ 40 | B51: 1.5м 6м | C51: 10хснд | D51: 19281 | E51: 2826 | F51: 314 | G51: Т | H51: 118508 | L51: 111800
A52: Лист НЛГ 45 | B52: 1.5м 6м | C52: 09г2с | D52: 19281 | E52: 3179.3 | F52: 353.25 | G52: Т | H52: 69451.2 | L52: 65520
A53: Лист НЛГ 50 | B53: 1.5м 6м | C53: 09г2с | D53: 19281 | E53: 3532.5 | F53: 392.5 | G53: Т | H53: 67246.4 | L53: 63440
A54: Лист НЛГ 50 | B54: 1.5м 6м | C54: 09г2с-15 | D54: 19281 | E54: 3532.5 | F54: 392.5 | G54: Т | H54: 67246.4 | L54: 63440
A55: Лист НЛГ 50 | B55: 1.5м 6м | C55: 10хснд | D55: 19281 | E55: 3532.5 | F55: 392.5 | G55: Т | H55: 118508 | L55: 111800
A56: Лист НЛГ 60 | B56: 1.5м 6м | C56: 09г2с-15 | D56: 19281 | E56: 4239 | F56: 471 | G56: Т | H56: 91499.2 | L56: 86320
A57: Лист НЛГ 60 | B57: 1.5м 6м | C57: 09г2с | D57: 19281 | E57: 4239 | F57: 471 | G57: Т | H57: 91499.2 | L57: 86320
A58: Лист НЛГ 70 | B58: 1.5м 6м | C58: 09г2с | D58: 19281 | E58: 4945.5 | F58: 549.5 | G58: Т | H58: 108035.2 | L58: 101920
A59: Лист НЛГ 70 | B59: 1.5м 6м | C59: 09г2с-15 | D59: 19281 | E59: 4945.5 | F59: 549.5 | G59: Т | H59: 108035.2 | L59: 101920
A60: Лист НЛГ 80 | B60: 1.5м 6м | C60: 09г2с | D60: 19281 | E60: 5652 | F60: 628 | G60: Т | H60: 108035.2 | L60: 101920
A61: Лист НЛГ 80 | B61: 1.5м 6м | C61: 09г2с-15 | D61: 19281 | E61: 5652 | F61: 628 | G61: Т | H61: 108035.2 | L61: 101920
A62: Лист НЛГ 90 | B62: 1.5м 6м | C62: 09г2с | D62: 19281 | E62: 6358.5 | F62: 706.5 | G62: Т | H62: 108035.2 | L62: 101920
A63: Лист НЛГ 110 | B63: 1.5м 6м | C63: 09г2с | D63: 19281 | E63: 7771.5 | F63: 863.5 | G63: Т | H63: 108035.2 | L63: 101920
A64: Лист НЛГ 120 | B64: 1.5м 6м | C64: 09г2с | D64: 19281 | E64: 8478 | F64: 942 | G64: Т | H64: 108035.2 | L64: 101920
A67: Компания предоставляет услуги:
A68: *Размотка бухтовой арматуры, круга
A69: *Доставка автотранспортом
A70: *Резка кругом, газом, лазером (в т.ч. давальческого сырья)
A71: *Рубка на гильотине (в т.ч. давальческого сырья)
A72: *Гибка листов, покраска и сверление металла
A73: *Ответ хранение металла в крытом складе
A74: *Чистка труб
A75: *Взвешивание транспорта по запросу
A76: *Прайс-лист носит информационный характер и не является публичной офертой. Стоимость товаров, другие виды товаров, их наличие и подробные характеристики уточняйте у вашего менеджера или по телефону +7 (342) 219-56-60 или zakaz@kvin.ru

Sheet Полоса
K6: Полоса
A8: На Главную
A9: ПРАЙС-ЛИСТ на Полосу
A11: Цены указаны с НДС от 1 тонны
A12: Наименование | B12: Мерность | C12: Марка стали | D12: Гост | E12: Вес 1 шт, кг | F12: Вес 1 пм, кг | G12: ЕИ | H12: Цена р/т | I12: Цена р/т | J12: Цена р/т
A14: Полоса 3 150 | C14: ст3пс/сп | D14: ТУ | E14: 0 | F14: 3.53 | G14: Т | H14: =L14*6%+L14 -> 80528.2 | L14: 75970
A15: Полоса 4 60 | C15: ст3пс/сп | D15: 103 | E15: 0 | F15: 1.88 | G15: Т | H15: =L15*6%+L15 -> 74772.4 | L15: 70540
A16: Полоса 4 150 | C16: ст3пс/сп | D16: ТУ | E16: 29 | F16: 4.71 | G16: Т | H16: 81969.8 | L16: 77330
A17: Полоса 5 30 | C17: ст3пс/сп | D17: 103 | E17: 0 | F17: 1.18 | G17: Т | H17: 93598 | L17: 88300
A18: Полоса 5 40 | C18: ст3пс/сп | D18: 103 | E18: 10 | F18: 1.57 | G18: Т | H18: 75874.8 | L18: 71580
A19: Полоса 5 50 | C19: ст3пс/сп | D19: 103 | E19: 12 | F19: 1.96 | G19: Т | H19: 75874.8 | L19: 71580
A20: Полоса 5 60 | C20: ст3пс/сп | D20: 103 | E20: 0 | F20: 2.36 | G20: Т | H20: 75874.8 | L20: 71580
A21: Полоса 6 40 | C21: ст3пс/сп | D21: 103 | E21: 0 | F21: 1.88 | G21: Т | H21: 89729 | L21: 84650
A22: Полоса 6 50 | C22: ст3пс/сп | D22: 103 | E22: 0 | F22: 2.36 | G22: Т | H22: 89729 | L22: 84650
A23: Полоса 6 60 | C23: ст3пс/сп | D23: 103 | E23: 0 | F23: 2.83 | G23: Т | H23: 89729 | L23: 84650
A24: Полоса 6 150 | C24: ст3пс/сп | D24: ТУ | E24: 0 | F24: 7.07 | G24: Т | H24: 89729 | L24: 84650
A25: Полоса 8 60 | C25: ст3пс/сп | D25: 103 | E25: 0 | F25: 3.77 | G25: Т | H25: 88616 | L25: 83600
A26: Полоса 8 80 | C26: ст3пс/сп | D26: 103 | E26: 0 | F26: 5.02 | G26: Т | H26: 88616 | L26: 83600
A28: Внимание! Цены справочные, актуальные запрашивать в отделах продаж
A29: Цены указаны при условии 100% предоплаты. Условия рассрочки оплаты согласовываются индивидуально
A30: Компания предоставляет услуги:
A31: *Размотка бухтовой арматуры, круга
A32: *Доставка автотранспортом
A33: *Резка кругом, газом, лазером (в т.ч. давальческого сырья)
A34: *Рубка на гильотине (в т.ч. давальческого сырья)
A35: *Гибка листов, покраска и сверление металла
A36: *Ответ хранение металла в крытом складе
A37: *Чистка труб
A38: *Взвешивание транспорта по запросу
A39: *Прайс-лист носит информационный характер и не является публичной офертой. Стоимость товаров, другие виды товаров, их наличие и подробные характеристики уточняйте у вашего менеджера или по телефону +7 (342) 219-56-60 или zakaz@kvin.ru

Sheet Полоса ОЦ
K6: Полоса ОЦ
A9: На Главную
A10: ПРАЙС-ЛИСТ на Полосу ОЦ
A12: Цены указаны с НДС от 1 тонны
A13: Наименование | B13: Мерность | C13: Марка стали | D13: Гост | E13: Вес 1 шт, кг | F13: Вес 1 пм, кг | G13: ЕИ | H13: Цена р/т | I13: Цена р/т | J13: Цена р/т
A15: Полоса ОЦ 4 25 | C15: ст3пс/сп | D15: 103 | E15: 5.5 | F15: 0.79 | G15: Т | H15: =L15*6%+L15 -> 143227.2 | L15: 135120
A16: Полоса ОЦ 4 40 | C16: ст3пс/сп | D16: 103 | E16: 9 | F16: 1.26 | G16: Т | H16: =L16*6%+L16 -> 135584.6 | L16: 127910
A17: Полоса ОЦ 4 40 | C17: 09г2с | D17: 103 | E17: 0 | F17: 1.26 | G17: Т | H17: 144001 | L17: 135850
A18: Полоса ОЦ 4 50 | C18: ст3пс/сп | D18: 103 | E18: 0 | F18: 1.57 | G18: Т | H18: 136252.4 | L18: 128540
A19: Полоса ОЦ 5 40 | C19: ст3пс/сп | D19: 103 | E19: 12 | F19: 1.57 | G19: Т | H19: 135584.6 | L19: 127910
A20: Полоса ОЦ 5 50 | C20: ст3пс/сп | D20: 103 | E20: 14 | F20: 1.96 | G20: Т | H20: 135807.2 | L20: 128120
A23: Внимание! Цены справочные, актуальные запрашивать в отделах продаж
A24: Цены указаны при условии 100% предоплаты. Условия рассрочки оплаты согласовываются индивидуально
A25: Компания предоставляет услуги:
A26: *Размотка бухтовой арматуры, круга
A27: *Доставка автотранспортом
A28: *Резка кругом, газом, лазером (в т.ч. давальческого сырья)
A29: *Рубка на гильотине (в т.ч. давальческого сырья)
A30: *Гибка листов, покраска и сверление металла
A31: *Ответ хранение металла в крытом складе
A32: *Чистка труб
A33: *Взвешивание транспорта по запросу
A34: *Прайс-лист носит информационный характер и не является публичной офертой. Стоимость товаров, другие виды товаров, их наличие и подробные характеристики уточняйте у вашего менеджера или по телефону +7 (342) 219-56-60 или zakaz@kvin.ru

Sheet Проволока ВР
K6: Проволока ВР
A9: На Главную
A10: ПРАЙС-ЛИСТ на Черный металлопрокат
A12: Цены указаны с НДС от 1 тонны
A13: Наименование | B13: Мерность | C13: Марка стали | D13: Гост | E13: Вес 1 шт, кг | F13: Вес 1 пм, кг | G13: ЕИ | H13: Цена р/т | I13: Цена р/т | J13: Цена р/т
A15: Проволока d3.0 | B15: бухта | C15: ВР-1 | D15: 6727 | E15: 955 | F15: 0 | G15: Т | H15: =L15*6%+L15 -> 61480 | L15: 58000
A16: Проволока d5.0 | B16: бухта | C16: ВР-1 | D16: 6727 | E16: 1191 | F16: 0 | G16: Т | H16: =L16*6%+L16 -> 59815.8 | L16: 56430
A19: Внимание! Цены справочные, актуальные запрашивать в отделах продаж
A20: Цены указаны при условии 100% предоплаты. Условия рассрочки оплаты согласовываются индивидуально
A21: Компания предоставляет услуги:
A22: *Размотка бухтовой арматуры, круга
A23: *Доставка автотранспортом
A24: *Резка кругом, газом, лазером (в т.ч. давальческого сырья)
A25: *Рубка на гильотине (в т.ч. давальческого сырья)
A26: *Гибка листов, покраска и сверление металла
A27: *Ответ хранение металла в крытом складе
A28: *Чистка труб
A29: *Взвешивание транспорта по запросу
A30: *Прайс-лист носит информационный характер и не является публичной офертой. Стоимость товаров, другие виды товаров, их наличие и подробные характеристики уточняйте у вашего менеджера или по телефону +7 (342) 219-56-60 или zakaz@kvin.ru

Sheet Проволока Т О (черная)
A8: На Главную
A9: ПРАЙС-ЛИСТ на Черный металлопрокат
A11: Цены указаны с НДС от 1 тонны
A12: Наименование | B12: Мерность | C12: Марка стали | D12: Гост | E12: Вес 1 шт, кг | F12: Вес 1 пм, кг | G12: ЕИ | H12: Цена р/т | I12: Цена р/т | J12: Цена р/т
A14: Проволока d1.2 | B14: бухта | C14: н/у черная | D14: 3282 | E14: 65 | F14: 0 | G14: Т | H14: =L14*6%+L14 -> 101357.2 | L14: 95620
A15: Проволока d1.2 | B15: мотки | C15: н/у черная | D15: 3282 | E15: 0 | F15: 0 | G15: Т | H15: =L15*6%+L15 -> 101357.2 | L15: 95620
A16: Проволока d1.6 | B16: бухта | C16: н/у черная | D16: 3282 | E16: 62 | F16: 0 | G16: Т | H16: 90280.2 | L16: 85170
A17: Проволока d2.0 | B17: бухта | C17: н/у черная | D17: 3282 | E17: 60 | F17: 0 | G17: Т | H17: 90280.2 | L17: 85170
A18: Проволока d3.0 | B18: бухта | C18: н/у черная | D18: 3282 | E18: 535 | F18: 0 | G18: Т | H18: 82521 | L18: 77850
A19: Проволока d4.0 | B19: бухта | C19: н/у черная | D19: 3282 | E19: 581 | F19: 0 | G19: Т | H19: 82521 | L19: 77850
A20: Проволока d5.0 | B20: бухта | C20: н/у черная | D20: 3282 | E20: 500 | F20: 0 | G20: Т | H20: 82521 | L20: 77850
A21: Проволока d6.0 | B21: бухта | C21: н/у черная | D21: 3282 | E21: 550 | F21: 0 | G21: Т | H21: 82521 | L21: 77850
A24: Внимание! Цены справочные, актуальные запрашивать в отделах продаж
A25: Цены указаны при условии 100% предоплаты. Условия рассрочки оплаты согласовываются индивидуально
A26: Компания предоставляет услуги:
A27: *Размотка бухтовой арматуры, круга
A28: *Доставка автотранспортом
A29: *Резка кругом, газом, лазером (в т.ч. давальческого сырья)
A30: *Рубка на гильотине (в т.ч. давальческого сырья)
A31: *Гибка листов, покраска и сверление металла
A32: *Ответ хранение металла в крытом складе
A33: *Чистка труб
A34: *Взвешивание транспорта по запросу
A35: *Прайс-лист носит информационный характер и не является публичной офертой. Стоимость товаров, другие виды товаров, их наличие и подробные характеристики уточняйте у вашего менеджера или по телефону +7 (342) 219-56-60 или zakaz@kvin.ru

Sheet Труба Б Ш
K6: Труба Б Ш
A8: Внимание! Цены справочные, актуальные запрашивать в отделах продаж
A9: Цены указаны при условии 100% предоплаты. Условия рассрочки оплаты согласовываются индивидуально
A11: На Главную
A12: ПРАЙС-ЛИСТ на Трубу Б/Ш
A14: Цены указаны с НДС от 1 тонны
A15: Наименование | B15: Мерность | C15: Марка стали | D15: Гост | E15: Вес 1 шт, кг | F15: Вес 1 пм, кг | G15: ЕИ | H15: Цена р/т | I15: Цена р/т | J15: Цена р/т
A17: Труба Б/Ш 38 3 | C17: ст20 | D17: 8732 | E17: 0 | F17: 2.59 | G17: Т | H17: =L17*6%+L17 -> 191817.6 | L17: 180960
A18: Труба Б/Ш 45 3.5 | C18: ст20 | D18: 8732 | E18: 0 | F18: 3.58 | G18: Т | H18: =L18*6%+L18 -> 191817.6 | L18: 180960
A19: Труба Б/Ш 45 4 | C19: ст20 | D19: 8732 | E19: 0 | F19: 4.04 | G19: Т | H19: 191817.6 | L19: 180960
A20: Труба Б/Ш 51 3.5 | C20: ст20 | D20: 8732 | E20: 0 | F20: 4.1 | G20: Т | H20: 196227.2 | L20: 185120
A21: Труба Б/Ш 57 3.5 | C21: ст20 | D21: 8732 | E21: 0 | F21: 4.62 | G21: Т | H21: 173076.8 | L21: 163280
A22: Труба Б/Ш 57 4 | C22: ст20 | D22: 8732 | E22: 0 | F22: 5.23 | G22: Т | H22: 173076.8 | L22: 163280
A23: Труба Б/Ш 57 4.5 | C23: ст20 | D23: 8732 | E23: 0 | F23: 5.82 | G23: Т | H23: 177486.4 | L23: 167440
A24: Труба Б/Ш 57 5 | C24: ст20 | D24: 8732 | E24: 0 | F24: 6.41 | G24: Т | H24: 177486.4 | L24: 167440
A25: Труба Б/Ш 57 6 | C25: ст20 | D25: 8732 | E25: 0 | F25: 7.54 | G25: Т | H25: 177486.4 | L25: 167440
A26: Труба Б/Ш 60 3.5 | C26: ст20 | D26: 8732 | E26: 0 | F26: 4.87 | G26: Т | H26: 182998.4 | L26: 172640
A27: Труба Б/Ш 76 3.5 | C27: ст20 | D27: 8732 | E27: 0 | F27: 6.26 | G27: Т | H27: 165360 | L27: 156000
A28: Труба Б/Ш 76 4 | C28: ст20 | D28: 8732 | E28: 0 | F28: 7.1 | G28: Т | H28: 168667.2 | L28: 159120
A29: Труба Б/Ш 76 5 | C29: ст20 | D29: 8732 | E29: 0 | F29: 8.75 | G29: Т | H29: 155438.4 | L29: 146640
A30: Труба Б/Ш 76 6 | C30: ст20 | D30: 8732 | E30: 0 | F30: 10.35 | G30: Т | H30: 155438.4 | L30: 146640
A31: Труба Б/Ш 89 3.5 | C31: ст20 | D31: 8732 | E31: 0 | F31: 7.38 | G31: Т | H31: 160950.4 | L31: 151840
A32: Труба Б/Ш 89 4 | C32: ст20 | D32: 8732 | E32: 0 | F32: 8.39 | G32: Т | H32: 165360 | L32: 156000
A33: Труба Б/Ш 89 5 | C33: ст20 | D33: 8732 | E33: 0 | F33: 10.35 | G33: Т | H33: 155438.4 | L33: 146640
A34: Труба Б/Ш 89 6 | C34: ст20 | D34: 8732 | E34: 0 | F34: 12.28 | G34: Т | H34: 152131.2 | L34: 143520
A35: Труба Б/Ш 108 4 | C35: ст20 | D35: 8732 | E35: 0 | F35: 10.25 | G35: Т | H35: 168667.2 | L35: 159120
A36: Труба Б/Ш 108 4.5 | C36: ст20 | D36: 8732 | E36: 0 | F36: 11.48 | G36: Т | H36: 168667.2 | L36: 159120
A37: Труба Б/Ш 108 5 | C37: ст20 | D37: 8732 | E37: 0 | F37: 12.69 | G37: Т | H37: 155438.4 | L37: 146640
A38: Труба Б/Ш 108 6 | C38: ст20 | D38: 8732 | E38: 0 | F38: 15.09 | G38: Т | H38: 155438.4 | L38: 146640
A39: Труба Б/Ш 108 8 | C39: ст20 | D39: 8732 | E39: 0 | F39: 19.72 | G39: Т | H39: 155438.4 | L39: 146640
A40: Труба Б/Ш 114 5 | C40: ст20 | D40: 8732 | E40: 0 | F40: 13.43 | G40: Т | H40: 155438.4 | L40: 146640
A41: Труба Б/Ш 114 6 | C41: ст20 | D41: 8732 | E41: 0 | F41: 15.97 | G41: Т | H41: 155438.4 | L41: 146640
A42: Труба Б/Ш 133 4 | C42: ст20 | D42: 8732 | E42: 0 | F42: 12.72 | G42: Т | H42: 164257.6 | L42: 154960
A43: Труба Б/Ш 133 5 | C43: ст20 | D43: 8732 | E43: 174 | F43: 15.78 | G43: Т | H43: 155438.4 | L43: 146640
A44: Труба Б/Ш 133 6 | C44: ст20 | D44: 8732 | E44: 0 | F44: 18.78 | G44: Т | H44: 155438.4 | L44: 146640
A45: Труба Б/Ш 159 4.5 | C45: ст20 | D45: 8732 | E45: 0 | F45: 17.14 | G45: Т | H45: 155438.4 | L45: 146640
A46: Труба Б/Ш 159 5 | C46: ст20 | D46: 8732 | E46: 0 | F46: 18.98 | G46: Т | H46: 155438.4 | L46: 146640
A47: Труба Б/Ш 159 6 | C47: ст20 | D47: 8732 | E47: 0 | F47: 22.64 | G47: Т | H47: 155438.4 | L47: 146640
A48: Труба Б/Ш 159 8 | C48: ст20 | D48: 8732 | E48: 0 | F48: 29.78 | G48: Т | H48: 154336 | L48: 145600
A49: Труба Б/Ш 159 10 | C49: ст20 | D49: 8732 | E49: 390 | F49: 36.73 | G49: Т | H49: 164257.6 | L49: 154960
A50: Труба Б/Ш 168 8 | C50: ст20 | D50: 8732 | E50: 0 | F50: 31.55 | G50: Т | H50: 142209.6 | L50: 134160
A51: Труба Б/Ш 219 6 | C51: ст20 | D51: 8732 | E51: 0 | F51: 31.52 | G51: Т | H51: 166462.4 | L51: 157040
A52: Труба Б/Ш 219 7 | C52: ст20 | D52: 8732 | E52: 0 | F52: 36.58 | G52: Т | H52: 155438.4 | L52: 146640
A53: Труба Б/Ш 219 8 | C53: ст20 | D53: 8732 | E53: 0 | F53: 41.63 | G53: Т | H53: 155438.4 | L53: 146640
A54: Труба Б/Ш 219 10 | C54: ст20 | D54: 8732 | E54: 0 | F54: 51.52 | G54: Т | H54: 153233.6 | L54: 144560
A55: Труба Б/Ш 273 7 | C55: ст20 | D55: 8732 | E55: 0 | F55: 45.9 | G55: Т | H55: 155438.4 | L55: 146640
A56: Труба Б/Ш 273 8 | C56: ст20 | D56: 8732 | E56: 0 | F56: 52.26 | G56: Т | H56: 155438.4 | L56: 146640
A57: Труба Б/Ш 273 10 | C57: ст20 | D57: 8732 | E57: 0 | F57: 64.83 | G57: Т | H57: 155438.4 | L57: 146640
A58: Труба Б/Ш 325 8 | C58: ст20 | D58: 8732 | E58: 0 | F58: 62.51 | G58: Т | H58: 170872 | L58: 161200
A59: Труба Б/Ш 377 10 | C59: ст20 | D59: 8732 | E59: 0 | F59: 90.46 | G59: Т | H59: 186305.6 | L59: 175760
A60: Труба Б/Ш 426 9 | C60: ст20 | D60: 8732 | E60: 0 | F60: 92.51 | G60: Т | H60: 182998.4 | L60: 172640
A61: Труба Б/Ш 426 10 | C61: ст20 | D61: 8732 | E61: 0 | F61: 102.54 | G61: Т | H61: 166462.4 | L61: 157040
A62: Труба Б/Ш 426 12 | C62: ст20 | D62: 8732 | E62: 0 | F62: 122.46 | G62: Т | H62: 182998.4 | L62: 172640
A63: Компания предоставляет услуги:
A64: *Размотка бухтовой арматуры, круга
A65: *Доставка автотранспортом
A66: *Резка кругом, газом, лазером (в т.ч. давальческого сырья)
A67: *Рубка на гильотине (в т.ч. давальческого сырья)
A68: *Гибка листов, покраска и сверление металла
A69: *Ответ хранение металла в крытом складе
A70: *Чистка труб
A71: *Взвешивание транспорта по запросу
A72: *Прайс-лист носит информационный характер и не является публичной офертой. Стоимость товаров, другие виды товаров, их наличие и подробные характеристики уточняйте у вашего менеджера или по телефону +7 (342) 219-56-60 или zakaz@kvin.ru

Sheet Труба ОЦ
A11: На Главную
A12: ПРАЙС-ЛИСТ на Трубу ОЦ
A14: Цены указаны с НДС от 1 тонны
A15: Наименование | B15: Мерность | C15: Марка стали | D15: Гост | E15: Вес 1 шт, кг | F15: Вес 1 пм, кг | G15: ЕИ | H15: Цена р/т | I15: Цена р/т | J15: Цена р/т
A17: Труба ВГП ОЦ 15ДУ 2.8 | D17: 3262 | E17: 0 | F17: 1.28 | G17: Т | H17: =L17*6%+L17 -> 129828.8 | L17: 122480
A18: Труба ВГП ОЦ 20ДУ 2.8 | D18: 3262 | E18: 11 | F18: 1.66 | G18: Т | H18: =L18*6%+L18 -> 120797.6 | L18: 113960
A19: Труба ВГП ОЦ 25ДУ 3.2 | D19: 3262 | E19: 15 | F19: 2.39 | G19: Т | H19: 124179 | L19: 117150
A20: Труба ВГП ОЦ 32ДУ 3.2 | D20: 3262 | E20: 20 | F20: 3.09 | G20: Т | H20: 111766.4 | L20: 105440
A21: Труба ВГП ОЦ 40ДУ 3.5 | D21: 3262 | E21: 24 | F21: 3.84 | G21: Т | H21: 112890 | L21: 106500
A22: Труба ВГП ОЦ 50ДУ 3.5 | D22: 3262 | E22: 31 | F22: 4.88 | G22: Т | H22: 111766.4 | L22: 105440
A23: Труба ОЦ 57 3.5 | D23: 10704 | E23: 30 | F23: 4.62 | G23: Т | H23: 109508.6 | L23: 103310
A24: Труба ОЦ 76 3.5 | D24: 10704 | E24: 41 | F24: 6.26 | G24: Т | H24: 110632.2 | L24: 104370
A25: Труба ОЦ 89 3.5 | D25: 10704 | E25: 48 | F25: 7.38 | G25: Т | H25: 111766.4 | L25: 105440
A26: Труба ОЦ 108 3.5 | D26: 10704 | E26: 60 | F26: 9.02 | G26: Т | H26: 111766.4 | L26: 105440
A29: Внимание! Цены справочные, актуальные запрашивать в отделах продаж
A30: Цены указаны при условии 100% предоплаты. Условия рассрочки оплаты согласовываются индивидуально
A31: Компания предоставляет услуги:
A32: *Размотка бухтовой арматуры, круга
A33: *Доставка автотранспортом
A34: *Резка кругом, газом, лазером (в т.ч. давальческого сырья)
A35: *Рубка на гильотине (в т.ч. давальческого сырья)
A36: *Гибка листов, покраска и сверление металла
A37: *Ответ хранение металла в крытом складе
A38: *Чистка труб
A39: *Взвешивание транспорта по запросу
A40: *Прайс-лист носит информационный характер и не является публичной офертой. Стоимость товаров, другие виды товаров, их наличие и подробные характеристики уточняйте у вашего менеджера или по телефону +7 (342) 219-56-60 или zakaz@kvin.ru

Sheet Труба профильная НЛГ 10-60
K6: Труба профильная НЛГ 10-60
A11: На Главную
A12: ПРАЙС-ЛИСТ на Трубу профильную НЛГ
A14: Цены указаны с НДС от 1 тонны
A15: Наименование | B15: Мерность | C15: Марка стали | D15: Гост | E15: Вес 1 шт, кг | F15: Вес 1 пм, кг | G15: ЕИ | H15: Цена р/т | I15: Цена р/т | J15: Цена р/т
A17: Труба профильная НЛГ 40 40 3 | D17: 8639/30245 | E17: 0 | F17: 3.36 | G17: Т | H17: =L17*6%+L17 -> 78471.8 | L17: 74030
A18: Труба профильная НЛГ 40 40 4 | D18: 8639/30245 | E18: 0 | F18: 4.3 | G18: Т | H18: =L18*6%+L18 -> 75132.8 | L18: 70880
A19: Труба профильная НЛГ 50 50 3 | D19: 8639/30245 | E19: 0 | F19: 4.31 | G19: Т | H19: 78471.8 | L19: 74030
A20: Труба профильная НЛГ 50 50 4 | D20: 8639/30245 | E20: 0 | F20: 5.56 | G20: Т | H20: 75132.8 | L20: 70880
A21: Труба профильная НЛГ 50 50 5 | D21: 8639/30245 | E21: 0 | F21: 6.73 | G21: Т | H21: 79584.8 | L21: 75080
A22: Труба профильная НЛГ 60 40 3 | D22: 8645/30245 | E22: 0 | F22: 4.3 | G22: Т | H22: 78471.8 | L22: 74030
A23: Труба профильная НЛГ 60 40 4 | D23: 8645/30245 | E23: 0 | F23: 5.56 | G23: Т | H23: 79584.8 | L23: 75080
A24: Труба профильная НЛГ 60 60 3 | D24: 8639/30245 | E24: 0 | F24: 5.25 | G24: Т | H24: 78471.8 | L24: 74030
A25: Труба профильная НЛГ 60 60 4 | D25: 8639/30245 | E25: 0 | F25: 6.82 | G25: Т | H25: 78471.8 | L25: 74030
A26: Труба профильная НЛГ 60 60 5 | D26: 8639/30245 | E26: 0 | F26: 8.3 | G26: Т | H26: 79584.8 | L26: 75080
A29: Внимание! Цены справочные, актуальные запрашивать в отделах продаж
A30: Цены указаны при условии 100% предоплаты. Условия рассрочки оплаты согласовываются индивидуально
A31: Компания предоставляет услуги:
A32: *Размотка бухтовой арматуры, круга
A33: *Доставка автотранспортом
A34: *Резка кругом, газом, лазером (в т.ч. давальческого сырья)
A35: *Рубка на гильотине (в т.ч. давальческого сырья)
A36: *Гибка листов, покраска и сверление металла
A37: *Ответ хранение металла в крытом складе
A38: *Чистка труб
A39: *Взвешивание транспорта по запросу
A40: *Прайс-лист носит информационный характер и не является публичной офертой. Стоимость товаров, другие виды товаров, их наличие и подробные характеристики уточняйте у вашего менеджера или по телефону +7 (342) 219-56-60 или zakaz@kvin.ru

Sheet Труба профильная 70-160
K6: Труба профильная 70-160
A8: Внимание! Цены справочные, актуальные запрашивать в отделах продаж
A9: Цены указаны при условии 100% предоплаты. Условия рассрочки оплаты согласовываются индивидуально
A11: На Главную
A12: ПРАЙС-ЛИСТ на Трубу профильную
A14: Цены указаны с НДС от 1 тонны
A15: Наименование | B15: Мерность | C15: Марка стали | D15: Гост | E15: Вес 1 шт, кг | F15: Вес 1 пм, кг | G15: ЕИ | H15: Цена р/т | I15: Цена р/т | J15: Цена р/т
A17: Труба профильная 100 100 5 | D17: 8639/30245 | E17: 173 | F17: 14.58 | G17: Т | H17: =L17*6%+L17 -> 67225.2 | L17: 63420
A18: Труба профильная 100 100 6 | D18: 8639/30245 | E18: 205 | F18: 17.22 | G18: Т | H18: =L18*6%+L18 -> 67225.2 | L18: 63420
A19: Труба профильная 100 100 7 | D19: 8639/30245 | E19: 0 | F19: 19.78 | G19: Т | H19: 70564.2 | L19: 66570
A20: Труба профильная 100 100 8 | D20: 8639/30245 | E20: 0 | F20: 22.25 | G20: Т | H20: 70564.2 | L20: 66570
A21: Труба профильная 120 60 3 | D21: 8645/30245 | E21: 0 | F21: 8.07 | G21: Т | H21: 67225.2 | L21: 63420
A22: Труба профильная 120 60 4 | D22: 8645/30245 | E22: 0 | F22: 10.48 | G22: Т | H22: 67225.2 | L22: 63420
A23: Труба профильная 120 60 5 | D23: 8645/30245 | E23: 0 | F23: 13 | G23: Т | H23: 67225.2 | L23: 63420
A24: Труба профильная 120 80 3 | D24: 8645/30245 | E24: 0 | F24: 9.02 | G24: Т | H24: 67225.2 | L24: 63420
A25: Труба профильная 120 80 4 | D25: 8645/30245 | E25: 142 | F25: 11.73 | G25: Т | H25: 67225.2 | L25: 63420
A26: Труба профильная 120 80 5 | D26: 8645/30245 | E26: 173 | F26: 14.58 | G26: Т | H26: 67225.2 | L26: 63420
A27: Труба профильная 120 80 6 | D27: 8645/30245 | E27: 204 | F27: 17.22 | G27: Т | H27: 67225.2 | L27: 63420
A28: Труба профильная 120 120 3 | D28: 8639/30245 | E28: 0 | F28: 10.9 | G28: Т | H28: 67225.2 | L28: 63420
A29: Труба профильная 120 120 4 | D29: СТО | E29: 0 | F29: 14.35 | G29: Т | H29: 67225.2 | L29: 63420
A30: Труба профильная 120 120 4 | D30: 8639/30245 | E30: 173 | F30: 14.35 | G30: Т | H30: 64999.2 | L30: 61320
A31: Труба профильная 120 120 5 | D31: 8639/30245 | E31: 211 | F31: 17.55 | G31: Т | H31: 67225.2 | L31: 63420
A32: Труба профильная 120 120 6 | D32: 8639/30245 | E32: 249 | F32: 20.99 | G32: Т | H32: 67225.2 | L32: 63420
A33: Труба профильная 120 120 8 | D33: 8639/30245 | E33: 0 | F33: 27.27 | G33: Т | H33: 70564.2 | L33: 66570
A34: Труба профильная 140 60 4 | D34: 8645/30245 | E34: 0 | F34: 11.73 | G34: Т | H34: 67225.2 | L34: 63420
A35: Труба профильная 140 60 5 | D35: 8645/30245 | E35: 0 | F35: 14.58 | G35: Т | H35: 67225.2 | L35: 63420
A36: Труба профильная 140 100 4 | D36: 8645/30245 | E36: 171 | F36: 14.25 | G36: Т | H36: 67225.2 | L36: 63420
A37: Труба профильная 140 100 5 | D37: 8645/30245 | E37: 211 | F37: 17.72 | G37: Т | H37: 67225.2 | L37: 63420
A38: Труба профильная 140 100 6 | D38: 8645/30245 | E38: 0 | F38: 20.75 | G38: Т | H38: 67225.2 | L38: 63420
A39: Труба профильная 140 120 4 | D39: 8645/30245 | E39: 0 | F39: 15.5 | G39: Т | H39: 67225.2 | L39: 63420
A40: Труба профильная 140 140 4 | D40: 8639/30245 | E40: 202 | F40: 16.87 | G40: Т | H40: 67225.2 | L40: 63420
A41: Труба профильная 140 140 5 | D41: 8639/30245 | E41: 251 | F41: 20.86 | G41: Т | H41: 67225.2 | L41: 63420
A42: Труба профильная 140 140 6 | D42: 8639/30245 | E42: 295 | F42: 24.76 | G42: Т | H42: 67225.2 | L42: 63420
A43: Труба профильная 140 140 7 | D43: 8639/30245 | E43: 0 | F43: 28.57 | G43: Т | H43: 70564.2 | L43: 66570
A44: Труба профильная 140 140 8 | D44: 8639/30245 | E44: 0 | F44: 32.29 | G44: Т | H44: 70564.2 | L44: 66570
A45: Труба профильная 150 150 4 | D45: 8639/30245 | E45: 0 | F45: 18.12 | G45: Т | H45: 68454.8 | L45: 64580
A46: Труба профильная 150 150 5 | D46: 8639/30245 | E46: 0 | F46: 22.43 | G46: Т | H46: 67341.8 | L46: 63530
A47: Труба профильная 150 150 6 | D47: 8639/30245 | E47: 0 | F47: 26.64 | G47: Т | H47: 67893 | L47: 64050
A48: Труба профильная 150 150 8 | D48: 8639/30245 | E48: 0 | F48: 34.81 | G48: Т | H48: 71126 | L48: 67100
A49: Труба профильная 160 80 4 | D49: 8645/30245 | E49: 0 | F49: 14.25 | G49: Т | H49: 67225.2 | L49: 63420
A50: Труба профильная 160 80 5 | D50: 8645/30245 | E50: 0 | F50: 17.72 | G50: Т | H50: 67225.2 | L50: 63420
A51: Труба профильная 160 120 4 | D51: 8645/30245 | E51: 0 | F51: 16.76 | G51: Т | H51: 67225.2 | L51: 63420
A52: Труба профильная 160 120 5 | D52: 8645/30245 | E52: 249 | F52: 20.86 | G52: Т | H52: 67225.2 | L52: 63420
A53: Труба профильная 160 120 6 | D53: 8645/30245 | E53: 0 | F53: 24.52 | G53: Т | H53: 67225.2 | L53: 63420
A54: Труба профильная 160 120 8 | D54: 8645/30245 | E54: 0 | F54: 31.43 | G54: Т | H54: 70564.2 | L54: 66570
A55: Труба профильная 160 160 4 | D55: 8639/30245 | E55: 233 | F55: 19.38 | G55: Т | H55: 67225.2 | L55: 63420
A56: Труба профильная 160 160 5 | D56: 8639/30245 | E56: 288 | F56: 24 | G56: Т | H56: 67225.2 | L56: 63420
A57: Труба профильная 160 160 6 | D57: 8639/30245 | E57: 340 | F57: 28.53 | G57: Т | H57: 67225.2 | L57: 63420
A58: Труба профильная 160 160 8 | D58: 8639/30245 | E58: 438 | F58: 37.32 | G58: Т | H58: 70564.2 | L58: 66570
A60: Компания предоставляет услуги:
A61: *Размотка бухтовой арматуры, круга
A62: *Доставка автотранспортом
A63: *Резка кругом, газом, лазером (в т.ч. давальческого сырья)
A64: *Рубка на гильотине (в т.ч. давальческого сырья)
A65: *Гибка листов, покраска и сверление металла
A66: *Ответ хранение металла в крытом складе
A67: *Чистка труб
A68: *Взвешивание транспорта по запросу
A69: *Прайс-лист носит информационный характер и не является публичной офертой. Стоимость товаров, другие виды товаров, их наличие и подробные характеристики уточняйте у вашего менеджера или по телефону +7 (342) 219-56-60 или zakaz@kvin.ru

Sheet Труба профильная НЛГ 70-160
K6: Труба профильная НЛГ 70-160
A9: На Главную
A10: ПРАЙС-ЛИСТ на Трубу профильную НЛГ
A12: Цены указаны с НДС от 1 тонны
A13: Наименование | B13: Мерность | C13: Марка стали | D13: Гост | E13: Вес 1 шт, кг | F13: Вес 1 пм, кг | G13: ЕИ | H13: Цена р/т | I13: Цена р/т | J13: Цена р/т
A15: Труба профильная НЛГ 80 40 4 | D15: 8645/30245 | E15: 0 | F15: 6.82 | G15: Т | H15: =L15*6%+L15 -> 79468.2 | L15: 74970
A16: Труба профильная НЛГ 80 80 4 | D16: 8639/30245 | E16: 111 | F16: 9.33 | G16: Т | H16: =L16*6%+L16 -> 79468.2 | L16: 74970
A17: Труба профильная НЛГ 80 80 5 | D17: 8639/30245 | E17: 136 | F17: 11.44 | G17: Т | H17: 79468.2 | L17: 74970
A18: Труба профильная НЛГ 80 80 6 | D18: 8639/30245 | E18: 0 | F18: 13.46 | G18: Т | H18: 79468.2 | L18: 74970
A19: Труба профильная НЛГ 100 50 5 | D19: 8645/30245 | E19: 0 | F19: 10.65 | G19: Т | H19: 79468.2 | L19: 74970
A20: Труба профильная НЛГ 100 100 4 | D20: 8639/30245 | E20: 141 | F20: 11.84 | G20: Т | H20: 79468.2 | L20: 74970
A21: Труба профильная НЛГ 100 100 5 | D21: 8639/30245 | E21: 173 | F21: 14.58 | G21: Т | H21: 79468.2 | L21: 74970
A22: Труба профильная НЛГ 100 100 6 | D22: 8639/30245 | E22: 204 | F22: 17.22 | G22: Т | H22: 79468.2 | L22: 74970
A23: Труба профильная НЛГ 100 100 8 | D23: 8639/30245 | E23: 0 | F23: 22.25 | G23: Т | H23: 83369 | L23: 78650
A24: Труба профильная НЛГ 120 80 4 | D24: 8645/30245 | E24: 0 | F24: 11.73 | G24: Т | H24: 79468.2 | L24: 74970
A25: Труба профильная НЛГ 120 80 5 | D25: 8645/30245 | E25: 0 | F25: 14.58 | G25: Т | H25: 79468.2 | L25: 74970
A26: Труба профильная НЛГ 120 120 4 | D26: 8639/30245 | E26: 171 | F26: 14.35 | G26: Т | H26: 79468.2 | L26: 74970
A27: Труба профильная НЛГ 120 120 5 | D27: 8639/30245 | E27: 211 | F27: 17.55 | G27: Т | H27: 79468.2 | L27: 74970
A28: Труба профильная НЛГ 120 120 6 | D28: 8639/30245 | E28: 0 | F28: 20.99 | G28: Т | H28: 79468.2 | L28: 74970
A29: Труба профильная НЛГ 120 120 8 | D29: 8639/30245 | E29: 0 | F29: 27.27 | G29: Т | H29: 83369 | L29: 78650
A30: Труба профильная НЛГ 140 100 5 | D30: 8645/30245 | E30: 0 | F30: 17.55 | G30: Т | H30: 79468.2 | L30: 74970
A31: Труба профильная НЛГ 140 100 6 | D31: 8645/30245 | E31: 0 | F31: 20.75 | G31: Т | H31: 79468.2 | L31: 74970
A32: Труба профильная НЛГ 140 140 5 | D32: 8639/30245 | E32: 0 | F32: 20.86 | G32: Т | H32: 79468.2 | L32: 74970
A33: Труба профильная НЛГ 140 140 6 | D33: 8639/30245 | E33: 0 | F33: 24.76 | G33: Т | H33: 79468.2 | L33: 74970
A34: Труба профильная НЛГ 140 140 8 | D34: 8639/30245 | E34: 0 | F34: 32.29 | G34: Т | H34: 83369 | L34: 78650
A35: Труба профильная НЛГ 160 80 5 | D35: 8645/30245 | E35: 0 | F35: 17.55 | G35: Т | H35: 78355.2 | L35: 73920
A36: Труба профильная НЛГ 160 120 5 | D36: 8645/30245 | E36: 0 | F36: 20.86 | G36: Т | H36: 79468.2 | L36: 74970
A37: Труба профильная НЛГ 160 120 6 | D37: 8645/30245 | E37: 295 | F37: 24.52 | G37: Т | H37: 79468.2 | L37: 74970
A38: Труба профильная НЛГ 160 160 4 | D38: 8639/30245 | E38: 0 | F38: 19.38 | G38: Т | H38: 79468.2 | L38: 74970
A39: Труба профильная НЛГ 160 160 5 | D39: 8639/30245 | E39: 0 | F39: 24 | G39: Т | H39: 79468.2 | L39: 74970
A40: Труба профильная НЛГ 160 160 6 | D40: 8639/30245 | E40: 0 | F40: 28.53 | G40: Т | H40: 79468.2 | L40: 74970
A41: Труба профильная НЛГ 160 160 7 | D41: 8639/30245 | E41: 0 | F41: 32.97 | G41: Т | H41: 83369 | L41: 78650
A42: Труба профильная НЛГ 160 160 8 | D42: 8639/30245 | E42: 0 | F42: 37.32 | G42: Т | H42: 83369 | L42: 78650
A44: Внимание! Цены справочные, актуальные запрашивать в отделах продаж
A45: Цены указаны при условии 100% предоплаты. Условия рассрочки оплаты согласовываются индивидуально
A46: Компания предоставляет услуги:
A47: *Размотка бухтовой арматуры, круга
A48: *Доставка автотранспортом
A49: *Резка кругом, газом, лазером (в т.ч. давальческого сырья)
A50: *Рубка на гильотине (в т.ч. давальческого сырья)
A51: *Гибка листов, покраска и сверление металла
A52: *Ответ хранение металла в крытом складе
A53: *Чистка труб
A54: *Взвешивание транспорта по запросу
A55: *Прайс-лист носит информационный характер и не является публичной офертой. Стоимость товаров, другие виды товаров, их наличие и подробные характеристики уточняйте у вашего менеджера или по телефону +7 (342) 219-56-60 или zakaz@kvin.ru

Sheet Труба профильная от 180
K6: Труба профильная от 180
A9: На Главную
A10: ПРАЙС-ЛИСТ на Трубу профильную
A12: Цены указаны с НДС от 1 тонны
A13: Наименование | B13: Мерность | C13: Марка стали | D13: Гост | E13: Вес 1 шт, кг | F13: Вес 1 пм, кг | G13: ЕИ | H13: Цена р/т | I13: Цена р/т | J13: Цена р/т
A15: Труба профильная 180 140 5 | D15: 8645/30245 | E15: 0 | F15: 24 | G15: Т | H15: =L15*6%+L15 -> 76797 | L15: 72450
A16: Труба профильная 180 140 6 | D16: 8645/30245 | E16: 0 | F16: 28.29 | G16: Т | H16: =L16*6%+L16 -> 76797 | L16: 72450
A17: Труба профильная 180 140 8 | D17: 8645/30245 | E17: 0 | F17: 36.46 | G17: Т | H17: 76797 | L17: 72450
A18: Труба профильная 180 180 5 | D18: 8639/30245 | E18: 324 | F18: 27.14 | G18: Т | H18: 74571 | L18: 70350
A19: Труба профильная 180 180 6 | D19: 8639/30245 | E19: 385 | F19: 32.3 | G19: Т | H19: 74571 | L19: 70350
A20: Труба профильная 180 180 8 | D20: 8639/30245 | E20: 0 | F20: 42.34 | G20: Т | H20: 75684 | L20: 71400
A21: Труба профильная 200 100 5 | D21: 8645/30245 | E21: 0 | F21: 22.43 | G21: Т | H21: 77910 | L21: 73500
A22: Труба профильная 200 100 6 | D22: 8645/30245 | E22: 0 | F22: 26.4 | G22: Т | H22: 77910 | L22: 73500
A23: Труба профильная 200 160 5 | D23: 8645/30245 | E23: 0 | F23: 27.14 | G23: Т | H23: 77910 | L23: 73500
A24: Труба профильная 200 160 6 | D24: 8645/30245 | E24: 0 | F24: 32.05 | G24: Т | H24: 77910 | L24: 73500
A25: Труба профильная 200 160 8 | D25: 8645/30245 | E25: 0 | F25: 41.48 | G25: Т | H25: 77910 | L25: 73500
A26: Труба профильная 200 200 6 | D26: 30245 | E26: 431 | F26: 35.82 | G26: Т | H26: 74571 | L26: 70350
A27: Труба профильная 200 200 8 | D27: 30245 | E27: 559 | F27: 46.51 | G27: Т | H27: 74571 | L27: 70350
A28: Труба профильная 300 300 8 | D28: 30245 | E28: 0 | F28: 71.63 | G28: Т | H28: 94053.8 | L28: 88730
A31: Внимание! Цены справочные, актуальные запрашивать в отделах продаж
A32: Цены указаны при условии 100% предоплаты. Условия рассрочки оплаты согласовываются индивидуально
A33: Компания предоставляет услуги:
A34: *Размотка бухтовой арматуры, круга
A35: *Доставка автотранспортом
A36: *Резка кругом, газом, лазером (в т.ч. давальческого сырья)
A37: *Рубка на гильотине (в т.ч. давальческого сырья)
A38: *Гибка листов, покраска и сверление металла
A39: *Ответ хранение металла в крытом складе
A40: *Чистка труб
A41: *Взвешивание транспорта по запросу
A42: *Прайс-лист носит информационный характер и не является публичной офертой. Стоимость товаров, другие виды товаров, их наличие и подробные характеристики уточняйте у вашего менеджера или по телефону +7 (342) 219-56-60 или zakaz@kvin.ru

Sheet Труба профильная НЛГ от 180
A11: На Главную
A12: ПРАЙС-ЛИСТ наТрубу профильную НЛГ
A14: Цены указаны с НДС от 1 тонны
A15: Наименование | B15: Мерность | C15: Марка стали | D15: Гост | E15: Вес 1 шт, кг | F15: Вес 1 пм, кг | G15: ЕИ | H15: Цена р/т | I15: Цена р/т | J15: Цена р/т
A17: Труба профильная НЛГ 180 140 5 | D17: 8645/30245 | E17: 0 | F17: 23.83 | G17: Т | H17: =L17*6%+L17 -> 85372.4 | L17: 80540
A18: Труба профильная НЛГ 180 140 8 | D18: 8645/30245 | E18: 0 | F18: 36.46 | G18: Т | H18: =L18*6%+L18 -> 85372.4 | L18: 80540
A19: Труба профильная НЛГ 180 180 5 | D19: 8639/30245 | E19: 0 | F19: 27.14 | G19: Т | H19: 84365.4 | L19: 79590
A20: Труба профильная НЛГ 180 180 6 | D20: 8639/30245 | E20: 0 | F20: 32.3 | G20: Т | H20: 84365.4 | L20: 79590
A21: Труба профильная НЛГ 180 180 8 | D21: 8639/30245 | E21: 0 | F21: 42.34 | G21: Т | H21: 84365.4 | L21: 79590
A22: Труба профильная НЛГ 200 100 6 | D22: 8645/30245 | E22: 0 | F22: 26.4 | G22: Т | H22: 86485.4 | L22: 81590
A23: Труба профильная НЛГ 200 160 5 | D23: 8645/30245 | E23: 0 | F23: 26.97 | G23: Т | H23: 86485.4 | L23: 81590
A24: Труба профильная НЛГ 200 160 8 | D24: 8645/30245 | E24: 0 | F24: 41.48 | G24: Т | H24: 86485.4 | L24: 81590
A25: Труба профильная НЛГ 200 200 6 | D25: 30245 | E25: 0 | F25: 35.82 | G25: Т | H25: 88711.4 | L25: 83690
A26: Труба профильная НЛГ 200 200 8 | D26: 30245 | E26: 0 | F26: 46.51 | G26: Т | H26: 88711.4 | L26: 83690
A27: Труба профильная НЛГ 200 200 10 | D27: 30245 | E27: 0 | F27: 56.96 | G27: Т | H27: 95166.8 | L27: 89780
A30: Внимание! Цены справочные, актуальные запрашивать в отделах продаж
A31: Цены указаны при условии 100% предоплаты. Условия рассрочки оплаты согласовываются индивидуально
A32: Компания предоставляет услуги:
A33: *Размотка бухтовой арматуры, круга
A34: *Доставка автотранспортом
A35: *Резка кругом, газом, лазером (в т.ч. давальческого сырья)
A36: *Рубка на гильотине (в т.ч. давальческого сырья)
A37: *Гибка листов, покраска и сверление металла
A38: *Ответ хранение металла в крытом складе
A39: *Чистка труб
A40: *Взвешивание транспорта по запросу
A41: *Прайс-лист носит информационный характер и не является публичной офертой. Стоимость товаров, другие виды товаров, их наличие и подробные характеристики уточняйте у вашего менеджера или по телефону +7 (342) 219-56-60 или zakaz@kvin.ru

Sheet Труба Э С 244-630
K6: Труба Э С 244-630
A11: На Главную
A12: ПРАЙС-ЛИСТ на Трубу Э/С
A14: Цены указаны с НДС от 1 тонны
A15: Наименование | B15: Мерность | C15: Марка стали | D15: Гост | E15: Вес 1 шт, кг | F15: Вес 1 пм, кг | G15: ЕИ | H15: Цена р/т | I15: Цена р/т | J15: Цена р/т
A17: Труба Э/С 273 6 | D17: 10704 | E17: 475 | F17: 39.49 | G17: Т | H17: =L17*6%+L17 -> 75132.8 | L17: 70880
A18: Труба Э/С 273 7 | D18: 10704 | E18: 0 | F18: 45.9 | G18: Т | H18: =L18*6%+L18 -> 75132.8 | L18: 70880
A19: Труба Э/С 273 8 | D19: 10704 | E19: 625 | F19: 52.26 | G19: Т | H19: 75132.8 | L19: 70880
A20: Труба Э/С 273 10 | D20: 10704 | E20: 0 | F20: 64.83 | G20: Т | H20: 75684 | L20: 71400
A21: Труба Э/С 325 6 | D21: 10704 | E21: 567 | F21: 47.18 | G21: Т | H21: 75132.8 | L21: 70880
A22: Труба Э/С 325 8 | D22: 10704 | E22: 751 | F22: 62.51 | G22: Т | H22: 75132.8 | L22: 70880
A23: Труба Э/С 325 9 | D23: 10704 | E23: 0 | F23: 70.1 | G23: Т | H23: 75132.8 | L23: 70880
A24: Труба Э/С 377 6 | D24: 10704 | E24: 0 | F24: 54.87 | G24: Т | H24: 84927.2 | L24: 80120
A25: Труба Э/С 426 10 | D25: 10704 | E25: 0 | F25: 102.54 | G25: Т | H25: 84927.2 | L25: 80120
A28: Внимание! Цены справочные, актуальные запрашивать в отделах продаж
A29: Цены указаны при условии 100% предоплаты. Условия рассрочки оплаты согласовываются индивидуально
A30: Компания предоставляет услуги:
A31: *Размотка бухтовой арматуры, круга
A32: *Доставка автотранспортом
A33: *Резка кругом, газом, лазером (в т.ч. давальческого сырья)
A34: *Рубка на гильотине (в т.ч. давальческого сырья)
A35: *Гибка листов, покраска и сверление металла
A36: *Ответ хранение металла в крытом складе
A37: *Чистка труб
A38: *Взвешивание транспорта по запросу
A39: *Прайс-лист носит информационный характер и не является публичной офертой. Стоимость товаров, другие виды товаров, их наличие и подробные характеристики уточняйте у вашего менеджера или по телефону +7 (342) 219-56-60 или zakaz@kvin.ru

Sheet Уголок 20-125
K6: Уголок 20-125
A8: Внимание! Цены справочные, актуальные запрашивать в отделах продаж
A9: Цены указаны при условии 100% предоплаты. Условия рассрочки оплаты согласовываются индивидуально
A11: На Главную
A12: ПРАЙС-ЛИСТ на Уголок
A14: Цены указаны с НДС от 1 тонны
A15: Наименование | B15: Мерность | C15: Марка стали | D15: Гост | E15: Вес 1 шт, кг | F15: Вес 1 пм, кг | G15: ЕИ | H15: Цена р/т | I15: Цена р/т | J15: Цена р/т
A17: Уголок 20 20 4 | B17: 6м | C17: ст3пс5/сп5 | D17: 8509 | E17: 6.9 | F17: 1.15 | G17: Т | H17: =L17*6%+L17 -> 100869.6 | L17: 95160
A18: Уголок 25 25 3 | B18: 6м | C18: ст3пс5/сп5 | D18: 8509 | E18: 8 | F18: 1.12 | G18: Т | H18: =L18*6%+L18 -> 73309.6 | L18: 69160
A19: Уголок 25 25 4 | B19: 6м | C19: ст3пс5/сп5 | D19: 8509 | E19: 9 | F19: 1.46 | G19: Т | H19: 73309.6 | L19: 69160
A20: Уголок 32 32 3 | B20: 6м | C20: ст3пс5/сп5 | D20: 8509 | E20: 9 | F20: 1.46 | G20: Т | H20: 74412 | L20: 70200
A21: Уголок 32 32 4 | B21: 6м | C21: ст3пс5/сп5 | D21: 8509 | E21: 13 | F21: 1.91 | G21: Т | H21: 73309.6 | L21: 69160
A22: Уголок 35 35 3 | B22: 6м | C22: ст3пс5/сп5 | D22: 8509 | E22: 12 | F22: 1.6 | G22: Т | H22: 73860.8 | L22: 69680
A23: Уголок 35 35 4 | B23: 6м | C23: ст3пс5/сп5 | D23: 8509 | E23: 13.5 | F23: 2.1 | G23: Т | H23: 73309.6 | L23: 69160
A24: Уголок 40 40 3 | B24: 6м | C24: ст3пс5/сп5 | D24: 8509 | E24: 12 | F24: 1.85 | G24: Т | H24: 68900 | L24: 65000
A25: Уголок 40 40 3 | B25: 12м | C25: ст3пс5/сп5 | D25: 8509 | E25: 22.2 | F25: 1.85 | G25: Т | H25: 68900 | L25: 65000
A26: Уголок 40 40 4 | B26: 6м | C26: ст3пс5/сп5 | D26: 8509 | E26: 15.5 | F26: 2.42 | G26: Т | H26: 60080.8 | L26: 56680
A27: Уголок 40 40 4 | B27: 12м | C27: ст3пс5/сп5 | D27: 8509 | E27: 32 | F27: 2.42 | G27: Т | H27: 60080.8 | L27: 56680
A28: Уголок 40 40 5 | B28: 12м | C28: ст3пс5/сп5 | D28: 8509 | E28: 35.76 | F28: 2.98 | G28: Т | H28: 60080.8 | L28: 56680
A29: Уголок 45 45 4 | B29: 6м | C29: ст3пс5/сп5 | D29: 8509 | E29: 18 | F29: 2.73 | G29: Т | H29: 59529.6 | L29: 56160
A30: Уголок 45 45 4 | B30: 12м | C30: ст3пс5/сп5 | D30: 8509 | E30: 35 | F30: 2.73 | G30: Т | H30: 59529.6 | L30: 56160
A31: Уголок 45 45 5 | B31: 12м | C31: ст3пс5/сп5 | D31: 8509 | E31: 42 | F31: 3.37 | G31: Т | H31: 58978.4 | L31: 55640
A32: Уголок 50 50 4 | B32: 6м | C32: ст3пс5/сп5 | D32: 8509 | E32: 19 | F32: 3.05 | G32: Т | H32: 58427.2 | L32: 55120
A33: Уголок 50 50 4 | B33: 12м | C33: ст3пс5/сп5 | D33: 8509 | E33: 38 | F33: 3.05 | G33: Т | H33: 58427.2 | L33: 55120
A34: Уголок 50 50 5 | B34: 12м | C34: ст3пс5/сп5 | D34: 8509 | E34: 45.24 | F34: 3.77 | G34: Т | H34: 136697.6 | L34: 128960
A35: Уголок 50 50 5 | B35: 6м | C35: ст3пс5/сп5 | D35: 8509 | E35: 24 | F35: 3.77 | G35: Т | H35: 58427.2 | L35: 55120
A36: Уголок 50 50 5 | B36: 12м | C36: ст3пс5/сп5 | D36: 8509 | E36: 47 | F36: 3.77 | G36: Т | H36: 58427.2 | L36: 55120
A37: Уголок 50 50 6 | B37: 12м | C37: ст3пс5/сп5 | D37: 8509 | E37: 55 | F37: 4.47 | G37: Т | H37: 61183.2 | L37: 57720
A38: Уголок 63 40 5 | B38: 12м | C38: ст3пс5/сп5 | D38: 8510 | E38: 46.92 | F38: 3.91 | G38: Т | H38: 76065.6 | L38: 71760
A39: Уголок 63 40 6 | B39: 12м | C39: ст3пс5/сп5 | D39: 8510 | E39: 58 | F39: 4.63 | G39: Т | H39: 76065.6 | L39: 71760
A40: Уголок 63 63 4 | B40: 6м | C40: ст3пс5/сп5 | D40: 8509 | E40: 24 | F40: 3.9 | G40: Т | H40: 58978.4 | L40: 55640
A41: Уголок 63 63 4 | B41: 12м | C41: ст3пс5/сп5 | D41: 8509 | E41: 48 | F41: 3.9 | G41: Т | H41: 58978.4 | L41: 55640
A42: Уголок 63 63 5 | B42: 6м | C42: ст3пс5/сп5 | D42: 8509 | E42: 31 | F42: 4.81 | G42: Т | H42: 58427.2 | L42: 55120
A43: Уголок 63 63 5 | B43: 12м | C43: ст3пс5/сп5 | D43: 8509 | E43: 61 | F43: 4.81 | G43: Т | H43: 58427.2 | L43: 55120
A44: Уголок 63 63 6 | B44: 6м | C44: ст3пс5/сп5 | D44: 8509 | E44: 34.32 | F44: 5.72 | G44: Т | H44: 58427.2 | L44: 55120
A45: Уголок 63 63 6 | B45: 12м | C45: ст3пс5/сп5 | D45: 8509 | E45: 71 | F45: 5.72 | G45: Т | H45: 58427.2 | L45: 55120
A46: Уголок 70 70 5 | B46: 12м | C46: ст3пс5/сп5 | D46: 8509 | E46: 67 | F46: 5.38 | G46: Т | H46: 61734.4 | L46: 58240
A47: Уголок 70 70 6 | B47: 12м | C47: ст3пс5/сп5 | D47: 8509 | E47: 79 | F47: 6.39 | G47: Т | H47: 61734.4 | L47: 58240
A48: Уголок 70 70 7 | B48: 12м | C48: ст3пс5/сп5 | D48: 8509 | E48: 88.68 | F48: 7.39 | G48: Т | H48: 62285.6 | L48: 58760
A49: Уголок 75 50 5 | B49: 12м | C49: ст3пс5/сп5 | D49: 8510 | E49: 59 | F49: 4.79 | G49: Т | H49: 76065.6 | L49: 71760
A50: Уголок 75 50 6 | B50: 12м | C50: ст3пс5/сп5 | D50: 8510 | E50: 68.28 | F50: 5.69 | G50: Т | H50: 76065.6 | L50: 71760
A51: Уголок 75 75 5 | B51: 12м | C51: ст3пс5/сп5 | D51: 8509 | E51: 71 | F51: 5.8 | G51: Т | H51: 60632 | L51: 57200
A52: Уголок 75 75 5 | B52: 6м | C52: ст3пс5/сп5 | D52: 8509 | E52: 34.8 | F52: 5.8 | G52: Т | H52: 60632 | L52: 57200
A53: Уголок 75 75 6 | B53: 12м | C53: ст3пс5/сп5 | D53: 8509 | E53: 85 | F53: 6.89 | G53: Т | H53: 60632 | L53: 57200
A54: Уголок 75 75 6 | B54: 6м | C54: ст3пс5/сп5 | D54: 8509 | E54: 43 | F54: 6.89 | G54: Т | H54: 60632 | L54: 57200
A55: Уголок 75 75 7 | B55: 12м | C55: ст3пс5/сп5 | D55: 8509 | E55: 95.52 | F55: 7.96 | G55: Т | H55: 60632 | L55: 57200
A56: Уголок 75 75 8 | B56: 12м | C56: ст3пс5/сп5 | D56: 8509 | E56: 110.4 | F56: 9.02 | G56: Т | H56: 60632 | L56: 57200
A57: Уголок 75 75 8 | B57: 6м | C57: ст3пс5/сп5 | D57: 8509 | E57: 54.12 | F57: 9.02 | G57: Т | H57: 60632 | L57: 57200
A58: Уголок 75 75 9 | B58: 6м | C58: ст3пс5/сп5 | D58: 8509 | E58: 60.42 | F58: 10.07 | G58: Т | H58: 61734.4 | L58: 58240
A59: Уголок 75 75 9 | B59: 12м | C59: ст3пс5/сп5 | D59: 8509 | E59: 120.8 | F59: 10.07 | G59: Т | H59: 61734.4 | L59: 58240
A60: Уголок 80 80 6 | B60: 12м | C60: ст3пс5/сп5 | D60: 8509 | E60: 90.5 | F60: 7.36 | G60: Т | H60: 61183.2 | L60: 57720
A61: Уголок 80 80 6 | B61: 6м | C61: ст3пс5/сп5 | D61: 8509 | E61: 44.16 | F61: 7.36 | G61: Т | H61: 61183.2 | L61: 57720
A62: Уголок 80 80 7 | B62: 12м | C62: ст3пс5/сп5 | D62: 8509 | E62: 102.1 | F62: 8.51 | G62: Т | H62: 61183.2 | L62: 57720
A63: Уголок 80 80 8 | B63: 12м | C63: ст3пс5/сп5 | D63: 8509 | E63: 119 | F63: 9.65 | G63: Т | H63: 61183.2 | L63: 57720
A64: Уголок 90 90 6 | B64: 6м | C64: ст3пс5/сп5 | D64: 8509 | E64: 49.98 | F64: 8.33 | G64: Т | H64: 61183.2 | L64: 57720
A65: Уголок 90 90 6 | B65: 12м | C65: ст3пс5/сп5 | D65: 8509 | E65: 102 | F65: 8.33 | G65: Т | H65: 61183.2 | L65: 57720
A66: Уголок 90 90 7 | B66: 12м | C66: ст3пс5/сп5 | D66: 8509 | E66: 118 | F66: 9.64 | G66: Т | H66: 61183.2 | L66: 57720
A67: Уголок 90 90 8 | B67: 12м | C67: ст3пс5/сп5 | D67: 8509 | E67: 134 | F67: 10.93 | G67: Т | H67: 61183.2 | L67: 57720
A68: Уголок 90 90 9 | B68: 12м | C68: ст3пс5/сп5 | D68: 8509 | E68: 146.4 | F68: 12.2 | G68: Т | H68: 64490.4 | L68: 60840
A69: Уголок 100 63 6 | B69: 12м | C69: ст3пс5/сп5 | D69: 8510 | E69: 93 | F69: 7.53 | G69: Т | H69: 76065.6 | L69: 71760
A70: Уголок 100 63 6 | B70: 12м | C70: C255 | D70: GB/T 706-16 | E70: 90.36 | F70: 7.53 | G70: Т | H70: 73860.8 | L70: 69680
A71: Уголок 100 63 8 | B71: 12м | C71: ст3пс5/сп5 | D71: 8510 | E71: 121 | F71: 9.87 | G71: Т | H71: 76065.6 | L71: 71760
A72: Уголок 100 100 7 | B72: 12м | C72: ст3пс5/сп5 | D72: 8509 | E72: 131 | F72: 10.79 | G72: Т | H72: 67246.4 | L72: 63440
A73: Уголок 100 100 7 | B73: 6м | C73: ст3пс5/сп5 | D73: 8509 | E73: 64.74 | F73: 10.79 | G73: Т | H73: 67246.4 | L73: 63440
A74: Уголок 100 100 8 | B74: 6м | C74: ст3пс5/сп5 | D74: 8509 | E74: 73.5 | F74: 12.25 | G74: Т | H74: 60632 | L74: 57200
A75: Уголок 100 100 8 | B75: 12м | C75: ст3пс5/сп5 | D75: 8509 | E75: 149 | F75: 12.25 | G75: Т | H75: 60632 | L75: 57200
A76: Уголок 100 100 10 | B76: 12м | C76: ст3пс5/сп5 | D76: 8509 | E76: 185 | F76: 15.1 | G76: Т | H76: 61183.2 | L76: 57720
A77: Уголок 100 100 10 | B77: 6м | C77: ст3пс5/сп5 | D77: 8509 | E77: 90.6 | F77: 15.1 | G77: Т | H77: 61183.2 | L77: 57720
A78: Уголок 100 100 12 | B78: 12м | C78: ст3пс5/сп5 | D78: 8509 | E78: 214.8 | F78: 17.9 | G78: Т | H78: 67246.4 | L78: 63440
A79: Уголок 110 110 7 | B79: 12м | C79: ст3пс5/сп5 | D79: 8509 | E79: 142.7 | F79: 11.89 | G79: Т | H79: 62285.6 | L79: 58760
A80: Уголок 110 110 8 | B80: 6м | C80: ст3пс5/сп5 | D80: 8509 | E80: 81 | F80: 13.5 | G80: Т | H80: 63388 | L80: 59800
A81: Уголок 110 110 8 | B81: 12м | C81: ст3пс5/сп5 | D81: 8509 | E81: 162 | F81: 13.5 | G81: Т | H81: 63388 | L81: 59800
A82: Уголок 125 80 8 | B82: 12м | C82: ст3пс5/сп5 | D82: 8510 | E82: 151 | F82: 12.58 | G82: Т | H82: =L82*6%+L82 -> 148824 | L82: 140400
A83: Уголок 125 80 10 | B83: 12м | C83: C255 | D83: GB/T 706-16 | E83: 185.64 | F83: 15.47 | G83: Т | H83: 148824 | L83: 140400
A84: Уголок 125 80 10 | B84: 12м | C84: ст3пс5/сп5 | D84: 8510 | E84: 185.6 | F84: 15.47 | G84: Т | H84: 148824 | L84: 140400
A85: Уголок 125 125 8 | B85: 6м | C85: ст3пс5/сп5 | D85: 8509 | E85: 92.76 | F85: 15.46 | G85: Т | H85: 65041.6 | L85: 61360
A86: Уголок 125 125 8 | B86: 12м | C86: ст3пс5/сп5 | D86: 8509 | E86: 1 | F86: 0.08 | G86: Т | H86: 65041.6 | L86: 61360
A87: Уголок 125 125 9 | B87: 12м | C87: ст3пс5/сп5 | D87: 8509 | E87: 207.6 | F87: 17.3 | G87: Т | H87: 68900 | L87: 65000
A88: Уголок 125 125 9 | B88: 6м | C88: ст3пс5/сп5 | D88: 8509 | E88: 103.8 | F88: 17.3 | G88: Т | H88: 68900 | L88: 65000
A89: Уголок 125 125 10 | B89: 12м | C89: ст3пс5/сп5 | D89: 8509 | E89: 228 | F89: 19.1 | G89: Т | H89: 65041.6 | L89: 61360
A90: Уголок 125 125 12 | B90: 12м | C90: ст3пс5/сп5 | D90: 8509 | E90: 272.2 | F90: 22.68 | G90: Т | H90: 66695.2 | L90: 62920
A91: Уголок НЛГ 25 25 4 | B91: 6м | C91: 09г2с-15 | D91: 8509 | E91: 9 | F91: 1.46 | G91: Т | H91: 93704 | L91: 88400
A92: Уголок НЛГ 32 32 4 | B92: 6м | C92: 09г2с-15 | D92: 8509 | E92: 13 | F92: 1.91 | G92: Т | H92: 93704 | L92: 88400
A93: Уголок НЛГ 32 32 4 | B93: 12м | C93: 09г2с-15 | D93: 8509 | E93: 22.92 | F93: 1.91 | G93: Т | H93: 93704 | L93: 88400
A94: Уголок НЛГ 35 35 4 | B94: 6м | C94: 09г2с-15 | D94: 8509 | E94: 12.6 | F94: 2.1 | G94: Т | H94: 93704 | L94: 88400
A95: Уголок НЛГ 35 35 4 | B95: 12м | C95: 09г2с-15 | D95: 8509 | E95: 25.2 | F95: 2.1 | G95: Т | H95: 93704 | L95: 88400
A96: Уголок НЛГ 40 40 4 | B96: 12м | C96: 09г2с-15 | D96: 8509 | E96: 1 | F96: 0.08 | G96: Т | H96: 69451.2 | L96: 65520
A97: Уголок НЛГ 45 45 4 | B97: 12м | C97: 09г2с-15 | D97: 8509 | E97: 35 | F97: 2.73 | G97: Т | H97: 69451.2 | L97: 65520
A98: Уголок НЛГ 45 45 4 | B98: 6м | C98: 09г2с-15 | D98: 8509 | E98: 16.38 | F98: 2.73 | G98: Т | H98: 69451.2 | L98: 65520
A99: Уголок НЛГ 45 45 5 | B99: 12м | C99: 09г2с-15 | D99: 8509 | E99: 40.44 | F99: 3.37 | G99: Т | H99: 69451.2 | L99: 65520
A100: Уголок НЛГ 50 50 4 | B100: 12м | C100: 09г2с-15 | D100: 8509 | E100: 38 | F100: 3.05 | G100: Т | H100: 69451.2 | L100: 65520
A101: Уголок НЛГ 50 50 5 | B101: 12м | C101: 09г2с-15 | D101: 8509 | E101: 47 | F101: 3.77 | G101: Т | H101: 69451.2 | L101: 65520
A102: Уголок НЛГ 50 50 6 | B102: 12м | C102: 09г2с-15 | D102: 8509 | E102: 53.64 | F102: 4.47 | G102: Т | H102: 66144 | L102: 62400
A103: Уголок НЛГ 63 63 5 | B103: 12м | C103: 09г2с-15 | D103: 8509 | E103: 60 | F103: 4.81 | G103: Т | H103: 69451.2 | L103: 65520
A104: Уголок НЛГ 63 63 6 | B104: 12м | C104: 09г2с-15 | D104: 8509 | E104: 71 | F104: 5.72 | G104: Т | H104: 69451.2 | L104: 65520
A105: Уголок НЛГ 70 70 5 | B105: 12м | C105: 09г2с-15 | D105: 8509 | E105: 64.56 | F105: 5.38 | G105: Т | H105: 74412 | L105: 70200
A106: Уголок НЛГ 70 70 6 | B106: 12м | C106: 09г2с-15 | D106: 8509 | E106: 79 | F106: 6.39 | G106: Т | H106: 74412 | L106: 70200
A107: Уголок НЛГ 75 75 5 | B107: 12м | C107: 09г2с-15 | D107: 8509 | E107: 69.6 | F107: 5.8 | G107: Т | H107: 72207.2 | L107: 68120
A108: Уголок НЛГ 75 75 6 | B108: 12м | C108: 09г2с-15 | D108: 8509 | E108: 82.68 | F108: 6.89 | G108: Т | H108: 72207.2 | L108: 68120
A109: Уголок НЛГ 75 75 8 | B109: 12м | C109: 09г2с-15 | D109: 8509 | E109: 108.2 | F109: 9.02 | G109: Т | H109: 72207.2 | L109: 68120
A110: Уголок НЛГ 80 80 6 | B110: 12м | C110: 09г2с-15 | D110: 8509 | E110: 88.32 | F110: 7.36 | G110: Т | H110: 74412 | L110: 70200
A111: Уголок НЛГ 80 80 8 | B111: 12м | C111: 09г2с-15 | D111: 8509 | E111: 115.8 | F111: 9.65 | G111: Т | H111: 74412 | L111: 70200
A112: Уголок НЛГ 90 90 6 | B112: 12м | C112: 09г2с-15 | D112: 8509 | E112: 99.96 | F112: 8.33 | G112: Т | H112: 72207.2 | L112: 68120
A113: Уголок НЛГ 90 90 7 | B113: 12м | C113: С345 | D113: 8509 | E113: 115.68 | F113: 9.64 | G113: Т | H113: 72207.2 | L113: 68120
A114: Уголок НЛГ 90 90 7 | B114: 6м | C114: 09г2с-15 | D114: 8509 | E114: 57.84 | F114: 9.64 | G114: Т | H114: 72207.2 | L114: 68120
A115: Уголок НЛГ 90 90 7 | B115: 12м | C115: 09г2с-15 | D115: 8509 | E115: 115.7 | F115: 9.64 | G115: Т | H115: 72207.2 | L115: 68120
A116: Уголок НЛГ 90 90 8 | B116: 12м | C116: 09г2с-15 | D116: 8509 | E116: 0.98 | F116: 0.08 | G116: Т | H116: 72207.2 | L116: 68120
A117: Уголок НЛГ 90 90 9 | B117: 12м | C117: 09г2с-15 | D117: 8509 | E117: 146.4 | F117: 12.2 | G117: Т | H117: 72207.2 | L117: 68120
A118: Уголок НЛГ 100 63 8 | B118: 12м | C118: 09г2с-15 | D118: 8510 | E118: 118.4 | F118: 9.87 | G118: Т | H118: 95357.6 | L118: 89960
A119: Уголок НЛГ 100 100 7 | B119: 6м | C119: 09г2с | D119: 8509 | E119: 64.74 | F119: 10.79 | G119: Т | H119: 72207.2 | L119: 68120
A120: Уголок НЛГ 100 100 7 | B120: 12м | C120: 09г2с-15 | D120: 8509 | E120: 129.5 | F120: 10.79 | G120: Т | H120: 72207.2 | L120: 68120
A121: Уголок НЛГ 100 100 8 | B121: 6м | C121: 09г2с-15 | D121: 8509 | E121: 73.5 | F121: 12.25 | G121: Т | H121: 72207.2 | L121: 68120
A122: Уголок НЛГ 100 100 8 | B122: 12м | C122: 09г2с-15 | D122: 8509 | E122: 1 | F122: 0.09 | G122: Т | H122: 72207.2 | L122: 68120
A123: Уголок НЛГ 100 100 10 | B123: 12м | C123: 09г2с-15 | D123: 8509 | E123: 181.2 | F123: 15.1 | G123: Т | H123: 72207.2 | L123: 68120
A124: Уголок НЛГ 100 100 12 | B124: 12м | C124: 09г2с-15 | D124: 8509 | E124: 214.8 | F124: 17.9 | G124: Т | H124: 72207.2 | L124: 68120
A125: Уголок НЛГ 110 110 7 | B125: 12м | C125: 09г2с-15 | D125: 8509 | E125: 142.7 | F125: 11.89 | G125: Т | H125: 74412 | L125: 70200
A126: Уголок НЛГ 110 110 8 | B126: 12м | C126: 09г2с-15 | D126: 8509 | E126: 162 | F126: 13.5 | G126: Т | H126: 74412 | L126: 70200
A127: Уголок НЛГ 110 110 8 | B127: 12м | C127: 09г2с | D127: 8509 | E127: 162 | F127: 13.5 | G127: Т | H127: 74412 | L127: 70200
A128: Уголок НЛГ 125 80 10 | B128: 12м | C128: 09г2с | D128: 8510 | E128: 185.6 | F128: 15.47 | G128: Т | H128: 159848 | L128: 150800
A129: Уголок НЛГ 125 125 8 | B129: 12м | C129: 09г2с-15 | D129: 8509 | E129: 185.5 | F129: 15.46 | G129: Т | H129: 74412 | L129: 70200
A130: Уголок НЛГ 125 125 9 | B130: 12м | C130: 09г2с-15 | D130: 8509 | E130: 207.6 | F130: 17.3 | G130: Т | H130: 74412 | L130: 70200
A131: Уголок НЛГ 125 125 10 | B131: 12м | C131: 09г2с-15 | D131: 8509 | E131: 229.2 | F131: 19.1 | G131: Т | H131: 74412 | L131: 70200
A132: Уголок НЛГ 125 125 12 | B132: 12м | C132: 09г2с-15 | D132: 8509 | E132: 272.2 | F132: 22.68 | G132: Т | H132: 74412 | L132: 70200
A133: Уголок НЛГ 125 125 12 | B133: 12м | C133: 09г2с | D133: 8509 | E133: 272.2 | F133: 22.68 | G133: Т | H133: 74412 | L133: 70200
A135: Внимание! Цены справочные, актуальные запрашивать в отделах продаж
A136: Цены указаны при условии 100% предоплаты. Условия рассрочки оплаты согласовываются индивидуально
A137: Компания предоставляет услуги:
A138: *Размотка бухтовой арматуры, круга
A139: *Доставка автотранспортом
A140: *Резка кругом, газом, лазером (в т.ч. давальческого сырья)
A141: *Рубка на гильотине (в т.ч. давальческого сырья)
A142: *Гибка листов, покраска и сверление металла
A143: *Ответ хранение металла в крытом складе
A144: *Чистка труб
A145: *Взвешивание транспорта по запросу
A146: *Прайс-лист носит информационный характер и не является публичной офертой. Стоимость товаров, другие виды товаров, их наличие и подробные характеристики уточняйте у вашего менеджера или по телефону +7 (342) 219-56-60 или zakaz@kvin.ru

Sheet Уголок от 140
K6: Уголок от 140
A8: Внимание! Цены справочные, актуальные запрашивать в отделах продаж
A9: Цены указаны при условии 100% предоплаты. Условия рассрочки оплаты согласовываются индивидуально
A11: На Главную
A12: ПРАЙС-ЛИСТ на Уголок
A14: Цены указаны с НДС от 1 тонны
A15: Наименование | B15: Мерность | C15: Марка стали | D15: Гост | E15: Вес 1 шт, кг | F15: Вес 1 пм, кг | G15: ЕИ | H15: Цена р/т | I15: Цена р/т | J15: Цена р/т
A17: Уголок 140 90 8 | B17: 12м | C17: ст3пс/сп | D17: 8510 | E17: 169.6 | F17: 14.13 | G17: Т | H17: =L17*6%+L17 -> 142591.2 | L17: 134520
A18: Уголок 140 90 8 | B18: 12м | C18: C255 | D18: GB/T 706-16 | E18: 169.6 | F18: 14.13 | G18: Т | H18: =L18*6%+L18 -> 131567.2 | L18: 124120
A19: Уголок 140 90 10 | B19: 12м | C19: C255 | D19: GB/T 706-16 | E19: 209.5 | F19: 17.46 | G19: Т | H19: 130464.8 | L19: 123080
A20: Уголок 140 90 10 | B20: 12м | C20: ст3пс5/сп5 | D20: 8510 | E20: 209.52 | F20: 17.46 | G20: Т | H20: 141488.8 | L20: 133480
A21: Уголок 140 140 9 | B21: 12м | C21: С255 | D21: 8509 | E21: 232.9 | F21: 19.41 | G21: Т | H21: 140503 | L21: 132550
A22: Уголок 140 140 9 | B22: 12м | C22: ст3пс5/сп5 | D22: 8509 | E22: 233 | F22: 19.41 | G22: Т | H22: 140503 | L22: 132550
A23: Уголок 140 140 10 | B23: 12м | C23: C255 | D23: GB/T 706-16 | E23: 257.4 | F23: 21.45 | G23: Т | H23: 129532 | L23: 122200
A24: Уголок 140 140 10 | B24: 12м | C24: С255 | D24: 8509 | E24: 257.4 | F24: 21.45 | G24: Т | H24: 140503 | L24: 132550
A25: Уголок 140 140 10 | B25: 12м | C25: ст3пс5/сп5 | D25: 8509 | E25: 259.5 | F25: 21.45 | G25: Т | H25: 140503 | L25: 132550
A26: Уголок 140 140 12 | B26: 12м | C26: С255 | D26: 8509 | E26: 306 | F26: 25.5 | G26: Т | H26: 140503 | L26: 132550
A27: Уголок 140 140 12 | B27: 12м | C27: ст3пс5/сп5 | D27: 8509 | E27: 306 | F27: 25.5 | G27: Т | H27: 140503 | L27: 132550
A28: Уголок 160 100 10 | B28: 12м | C28: ст3пс5/сп5 | D28: 8510 | E28: 238.2 | F28: 19.85 | G28: Т | H28: 142591.2 | L28: 134520
A29: Уголок 160 100 10 | B29: 12м | C29: С255 | D29: 8510 | E29: 239.5 | F29: 19.85 | G29: Т | H29: 142591.2 | L29: 134520
A30: Уголок 160 100 10 | B30: 12м | C30: C255 | D30: GB/T 706-16 | E30: 238.2 | F30: 19.85 | G30: Т | H30: 131514.2 | L30: 124070
A31: Уголок 160 100 14 | B31: 12м | C31: С255 | D31: 8510 | E31: 327.12 | F31: 27.26 | G31: Т | H31: 142591.2 | L31: 134520
A32: Уголок 160 160 10 | B32: 12м | C32: С255 | D32: 8509 | E32: 296.04 | F32: 24.67 | G32: Т | H32: 140503 | L32: 132550
A33: Уголок 160 160 10 | B33: 12м | C33: ст3пс5/сп5 | D33: 8509 | E33: 302 | F33: 24.67 | G33: Т | H33: 140503 | L33: 132550
A34: Уголок 160 160 12 | B34: 12м | C34: С255 | D34: 8509 | E34: 352.2 | F34: 29.35 | G34: Т | H34: 140503 | L34: 132550
A35: Уголок 160 160 12 | B35: 12м | C35: ст3пс5/сп5 | D35: 8509 | E35: 352.2 | F35: 29.35 | G35: Т | H35: 140503 | L35: 132550
A36: Уголок 160 160 14 | B36: 12м | C36: С255 | D36: 8509 | E36: 410.4 | F36: 34.2 | G36: Т | H36: 140503 | L36: 132550
A37: Уголок 160 160 16 | B37: 12м | C37: С255 | D37: 8509 | E37: 462.24 | F37: 38.52 | G37: Т | H37: 140503 | L37: 132550
A38: Уголок 160 160 16 | B38: 12м | C38: ст3пс5/сп5 | D38: 8509 | E38: 462.24 | F38: 38.52 | G38: Т | H38: 140503 | L38: 132550
A39: Уголок 180 110 10 | B39: 12м | C39: C255 | D39: GB/T 706-16 | E39: 266.4 | F39: 22.2 | G39: Т | H39: 131514.2 | L39: 124070
A40: Уголок 180 180 11 | B40: 12м | C40: С255 | D40: 8509 | E40: 365.64 | F40: 30.47 | G40: Т | H40: 143587.6 | L40: 135460
A41: Уголок 180 180 12 | B41: 12м | C41: С255 | D41: 8509 | E41: 397.44 | F41: 33.12 | G41: Т | H41: 143587.6 | L41: 135460
A42: Уголок 180 180 12 | B42: 12м | C42: ст3пс5/сп5 | D42: 8509 | E42: 397.44 | F42: 33.12 | G42: Т | H42: 143587.6 | L42: 135460
A43: Уголок 200 125 12 | B43: 12м | C43: ст3пс5/сп5 | D43: 8510 | E43: 356.88 | F43: 29.74 | G43: Т | H43: 142591.2 | L43: 134520
A44: Уголок 200 125 12 | B44: 12м | C44: C255 | D44: GB/T 706-16 | E44: 356.88 | F44: 29.74 | G44: Т | H44: 153678.8 | L44: 144980
A45: Уголок 200 200 12 | B45: 12м | C45: С255 | D45: 8509 | E45: 443.64 | F45: 36.97 | G45: Т | H45: 140503 | L45: 132550
A46: Уголок 200 200 12 | B46: 12м | C46: ст3пс5/сп5 | D46: 8509 | E46: 443.64 | F46: 36.97 | G46: Т | H46: 140503 | L46: 132550
A47: Уголок 200 200 14 | B47: 12м | C47: С255 | D47: 8509 | E47: 513.6 | F47: 42.8 | G47: Т | H47: 140503 | L47: 132550
A48: Уголок 200 200 16 | B48: 12м | C48: С255 | D48: 8509 | E48: 583.8 | F48: 48.65 | G48: Т | H48: 140503 | L48: 132550
A49: Уголок 200 200 20 | B49: 12м | C49: С255 | D49: 8509 | E49: 721 | F49: 60.08 | G49: Т | H49: 140503 | L49: 132550
A50: Уголок НЛГ 140 90 8 | B50: 12м | C50: C355 | D50: GB/T 706-16 | E50: 169.6 | F50: 14.13 | G50: Т | H50: 142209.6 | L50: 134160
A51: Уголок НЛГ 140 140 9 | B51: 12м | C51: С355 | D51: 8509 | E51: 232.9 | F51: 19.41 | G51: Т | H51: 149820.4 | L51: 141340
A52: Уголок НЛГ 140 140 9 | B52: 12м | C52: 09г2с-15 | D52: 8509 | E52: 232.9 | F52: 19.41 | G52: Т | H52: 149820.4 | L52: 141340
A53: Уголок НЛГ 140 140 10 | B53: 12м | C53: С355 | D53: 8509 | E53: 257.4 | F53: 21.45 | G53: Т | H53: 149820.4 | L53: 141340
A54: Уголок НЛГ 140 140 10 | B54: 12м | C54: C355 | D54: GB/T 706-16 | E54: 257.4 | F54: 21.45 | G54: Т | H54: 138679.8 | L54: 130830
A55: Уголок НЛГ 140 140 10 | B55: 12м | C55: 09г2с-15 | D55: 8509 | E55: 257.4 | F55: 21.45 | G55: Т | H55: 149820.4 | L55: 141340
A56: Уголок НЛГ 160 100 10 | B56: 12м | C56: 09г2с-15 | D56: 8510 | E56: 238.2 | F56: 19.85 | G56: Т | H56: 154993.2 | L56: 146220
A57: Уголок НЛГ 160 160 10 | B57: 12м | C57: 09г2с-15 | D57: 8509 | E57: 296.04 | F57: 24.67 | G57: Т | H57: 138679.8 | L57: 130830
A58: Уголок НЛГ 160 160 10 | B58: 12м | C58: C355 | D58: GB/T 706-16 | E58: 296.04 | F58: 24.67 | G58: Т | H58: 149820.4 | L58: 141340
A59: Уголок НЛГ 160 160 10 | B59: 12м | C59: С355 | D59: 8509 | E59: 296.04 | F59: 24.67 | G59: Т | H59: 149820.4 | L59: 141340
A60: Уголок НЛГ 160 160 11 | B60: 12м | C60: С355 | D60: 8509 | E60: 324.24 | F60: 27.02 | G60: Т | H60: 149820.4 | L60: 141340
A61: Уголок НЛГ 160 160 12 | B61: 12м | C61: С355 | D61: 8509 | E61: 352.2 | F61: 29.35 | G61: Т | H61: 149820.4 | L61: 141340
A62: Уголок НЛГ 160 160 14 | B62: 12м | C62: С355 | D62: 8509 | E62: 410.4 | F62: 34.2 | G62: Т | H62: 149820.4 | L62: 141340
A63: Уголок НЛГ 180 180 12 | B63: 12м | C63: 09г2с | D63: 8509 | E63: 397.44 | F63: 33.12 | G63: Т | H63: 152905 | L63: 144250
A64: Уголок НЛГ 180 180 12 | B64: 12м | C64: С355 | D64: 8509 | E64: 397.44 | F64: 33.12 | G64: Т | H64: 152905 | L64: 144250
A65: Уголок НЛГ 200 200 12 | B65: 12м | C65: С355 | D65: 8509 | E65: 443.64 | F65: 36.97 | G65: Т | H65: 149820.4 | L65: 141340
A66: Уголок НЛГ 200 200 14 | B66: 12м | C66: С355 | D66: 8509 | E66: 513.6 | F66: 42.8 | G66: Т | H66: 149820.4 | L66: 141340
A67: Уголок НЛГ 200 200 16 | B67: 12м | C67: 09г2с | D67: 8509 | E67: 583.8 | F67: 48.65 | G67: Т | H67: 149820.4 | L67: 141340
A68: Уголок НЛГ 200 200 16 | B68: 12м | C68: С355 | D68: 8509 | E68: 583.8 | F68: 48.65 | G68: Т | H68: 149820.4 | L68: 141340
A69: Уголок НЛГ 200 200 20 | B69: 12м | C69: С355 | D69: 8509 | E69: 721 | F69: 60.08 | G69: Т | H69: 149820.4 | L69: 141340
A72: Компания предоставляет услуги:
A73: *Размотка бухтовой арматуры, круга
A74: *Доставка автотранспортом
A75: *Резка кругом, газом, лазером (в т.ч. давальческого сырья)
A76: *Рубка на гильотине (в т.ч. давальческого сырья)
A77: *Гибка листов, покраска и сверление металла
A78: *Ответ хранение металла в крытом складе
A79: *Чистка труб
A80: *Взвешивание транспорта по запросу
A81: *Прайс-лист носит информационный характер и не является публичной офертой. Стоимость товаров, другие виды товаров, их наличие и подробные характеристики уточняйте у вашего менеджера или по телефону +7 (342) 219-56-60 или zakaz@kvin.ru

Sheet Швеллер 5-18
K6: Швеллер 5-18
A8: Внимание! Цены справочные, актуальные запрашивать в отделах продаж
A9: Цены указаны при условии 100% предоплаты. Условия рассрочки оплаты согласовываются индивидуально
A11: На Главную
A12: ПРАЙС-ЛИСТ на Швеллер
A14: Цены указаны с НДС от 1 тонны
A15: Наименование | B15: Мерность | C15: Марка стали | D15: Гост | E15: Вес 1 шт, кг | F15: Вес 1 пм, кг | G15: ЕИ | H15: Цена р/т | I15: Цена р/т | J15: Цена р/т
A17: Швеллер НЛГ 5 У | B17: 12м | C17: 09г2с-15 | D17: 8240 | E17: 58.08 | F17: 4.84 | G17: Т | H17: =L17*6%+L17 -> 94806.4 | L17: 89440
A18: Швеллер НЛГ 6.5 У | B18: 12м | C18: 09г2с-15 | D18: 8240 | E18: 70.8 | F18: 5.9 | G18: Т | H18: =L18*6%+L18 -> 88192 | L18: 83200
A19: Швеллер НЛГ 8 П | B19: 12м | C19: 09г2с-15 | D19: 8240 | E19: 84.6 | F19: 7.05 | G19: Т | H19: 76065.6 | L19: 71760
A20: Швеллер НЛГ 8 У | B20: 12м | C20: 09г2с-15 | D20: 8240 | E20: 84.6 | F20: 7.05 | G20: Т | H20: 81577.6 | L20: 76960
A21: Швеллер НЛГ 10 П | B21: 6м | C21: 09г2с-15 | D21: 8240 | E21: 51.54 | F21: 8.59 | G21: Т | H21: 76065.6 | L21: 71760
A22: Швеллер НЛГ 10 П | B22: 12м | C22: 09г2с-15 | D22: 8240 | E22: 103.1 | F22: 8.59 | G22: Т | H22: 76065.6 | L22: 71760
A23: Швеллер НЛГ 10 У | B23: 12м | C23: 09г2с-15 | D23: 8240 | E23: 107 | F23: 8.59 | G23: Т | H23: 76065.6 | L23: 71760
A24: Швеллер НЛГ 12 П | B24: 6м | C24: 09г2с-15 | D24: 8240 | E24: 62.4 | F24: 10.4 | G24: Т | H24: 80475.2 | L24: 75920
A25: Швеллер НЛГ 12 П | B25: 12м | C25: 09г2с-15 | D25: 8240 | E25: 129 | F25: 10.4 | G25: Т | H25: 80475.2 | L25: 75920
A26: Швеллер НЛГ 12 У | B26: 12м | C26: 09г2с-15 | D26: 8240 | E26: 127 | F26: 10.4 | G26: Т | H26: 80475.2 | L26: 75920
A27: Швеллер НЛГ 14 П | B27: 12м | C27: 09г2с-15 | D27: 8240 | E27: 154 | F27: 12.3 | G27: Т | H27: 80475.2 | L27: 75920
A28: Швеллер НЛГ 14 У | B28: 12м | C28: 09г2с-15 | D28: 8240 | E28: 147.6 | F28: 12.3 | G28: Т | H28: 80475.2 | L28: 75920
A29: Швеллер НЛГ 16 П | B29: 12м | C29: 09г2с-15 | D29: 8240 | E29: 170.4 | F29: 14.2 | G29: Т | H29: 80475.2 | L29: 75920
A30: Швеллер НЛГ 16 У | B30: 12м | C30: 09г2с-15 | D30: 8240 | E30: 177 | F30: 14.2 | G30: Т | H30: 80475.2 | L30: 75920
A31: Швеллер НЛГ 18 П | B31: 12м | C31: 09г2с-15 | D31: 8240 | E31: 195.6 | F31: 16.3 | G31: Т | H31: 84884.8 | L31: 80080
A32: Швеллер НЛГ 18 П | B32: 12м | C32: С355 | D32: 8240 | E32: 195.6 | F32: 16.3 | G32: Т | H32: 84884.8 | L32: 80080
A33: Швеллер НЛГ 18 У | B33: 12м | C33: С355 | D33: 8240 | E33: 195.6 | F33: 16.3 | G33: Т | H33: 84333.6 | L33: 79560
A34: Швеллер НЛГ 18 У | B34: 12м | C34: 09г2с-15 | D34: 8240 | E34: 201 | F34: 16.3 | G34: Т | H34: 84884.8 | L34: 80080
A39: Компания предоставляет услуги:
A40: *Размотка бухтовой арматуры, круга
A41: *Доставка автотранспортом
A42: *Резка кругом, газом, лазером (в т.ч. давальческого сырья)
A43: *Рубка на гильотине (в т.ч. давальческого сырья)
A44: *Гибка листов, покраска и сверление металла
A45: *Ответ хранение металла в крытом складе
A46: *Чистка труб
A47: *Взвешивание транспорта по запросу
A48: *Прайс-лист носит информационный характер и не является публичной офертой. Стоимость товаров, другие виды товаров, их наличие и подробные характеристики уточняйте у вашего менеджера или по телефону +7 (342) 219-56-60 или zakaz@kvin.ru

Sheet Швеллер от 20
K6: Швеллер от 20
A11: На Главную
A12: ПРАЙС-ЛИСТ на Швеллер
A14: Цены указаны с НДС от 1 тонны
A15: Наименование | B15: Мерность | C15: Марка стали | D15: Гост | E15: Вес 1 шт, кг | F15: Вес 1 пм, кг | G15: ЕИ | H15: Цена р/т | I15: Цена р/т | J15: Цена р/т
A17: Швеллер 22 П | B17: 12м | C17: ст3пс5/сп5 | D17: 8240 | E17: 256 | F17: 21 | G17: Т | H17: =L17*6%+L17 -> 132839.2 | L17: 125320
A18: Швеллер 22 П | B18: 12м | C18: С255 | D18: 8240 | E18: 258 | F18: 21 | G18: Т | H18: =L18*6%+L18 -> 132839.2 | L18: 125320
A19: Швеллер 22 У | B19: 12м | C19: С255 | D19: 8240 | E19: 252 | F19: 21 | G19: Т | H19: 132839.2 | L19: 125320
A20: Швеллер 22 У | B20: 12м | C20: ст3пс5/сп5 | D20: 8240 | E20: 252 | F20: 21 | G20: Т | H20: 132839.2 | L20: 125320
A21: Швеллер 24 П | B21: 12м | C21: ст3пс5/сп5 | D21: 8240 | E21: 297 | F21: 24 | G21: Т | H21: 132839.2 | L21: 125320
A22: Швеллер 24 П | B22: 12м | C22: С255 | D22: 8240 | E22: 305 | F22: 24 | G22: Т | H22: 132839.2 | L22: 125320
A23: Швеллер 24 У | B23: 12м | C23: С255 | D23: 8240 | E23: 307 | F23: 24 | G23: Т | H23: 132839.2 | L23: 125320
A24: Швеллер 24 У | B24: 12м | C24: ст3пс5/сп5 | D24: 8240 | E24: 288 | F24: 24 | G24: Т | H24: 132839.2 | L24: 125320
A25: Швеллер 27 П | B25: 12м | C25: ст3пс5/сп5 | D25: 8240 | E25: 332.4 | F25: 27.7 | G25: Т | H25: 146237.6 | L25: 137960
A26: Швеллер 27 П | B26: 12м | C26: С255 | D26: 8240 | E26: 332.4 | F26: 27.7 | G26: Т | H26: 146237.6 | L26: 137960
A27: Швеллер 27 У | B27: 12м | C27: ст3пс5/сп5 | D27: 8240 | E27: 332.4 | F27: 27.7 | G27: Т | H27: 146237.6 | L27: 137960
A28: Швеллер 27 У | B28: 12м | C28: С255 | D28: 8240 | E28: 332.5 | F28: 27.7 | G28: Т | H28: 146237.6 | L28: 137960
A29: Швеллер 30 П | B29: 12м | C29: С255 | D29: 8240 | E29: 382 | F29: 31.8 | G29: Т | H29: 146237.6 | L29: 137960
A30: Швеллер 30 У | B30: 12м | C30: ст3пс5/сп5 | D30: 8240 | E30: 381.6 | F30: 31.8 | G30: Т | H30: 146237.6 | L30: 137960
A31: Швеллер 30 У | B31: 12м | C31: С255 | D31: 8240 | E31: 381.6 | F31: 31.8 | G31: Т | H31: 146237.6 | L31: 137960
A32: Швеллер 40 П | B32: 12м | C32: С255 | D32: 8240 | E32: 577.5 | F32: 48.3 | G32: Т | H32: 187408 | L32: 176800
A33: Швеллер 40 П | B33: 12м | C33: ст3пс5/сп5 | D33: 8240 | E33: 579.6 | F33: 48.3 | G33: Т | H33: 187408 | L33: 176800
A34: Швеллер 40 У | B34: 12м | C34: ст3пс5/сп5 | D34: 8240 | E34: 579.6 | F34: 48.3 | G34: Т | H34: 143312 | L34: 135200
A35: Швеллер 40 У | B35: 12м | C35: ст3пс/сп | D35: GB/T 706-16 | E35: 579.6 | F35: 48.3 | G35: Т | H35: 154336 | L35: 145600
A36: Швеллер НЛГ 20 П | B36: 12м | C36: С355 | D36: 8240 | E36: 229 | F36: 18.4 | G36: Т | H36: 137800 | L36: 130000
A37: Швеллер НЛГ 20 П | B37: 12м | C37: 09г2с-15 | D37: 8240 | E37: 220.8 | F37: 18.4 | G37: Т | H37: 137800 | L37: 130000
A38: Швеллер НЛГ 20 У | B38: 12м | C38: С355 | D38: 8240 | E38: 226 | F38: 18.4 | G38: Т | H38: 137800 | L38: 130000
A39: Швеллер НЛГ 20 У | B39: 12м | C39: 09г2с-15 | D39: 8240 | E39: 220.8 | F39: 18.4 | G39: Т | H39: 137800 | L39: 130000
A40: Швеллер НЛГ 22 П | B40: 12м | C40: 09г2с-15 | D40: 8240 | E40: 252 | F40: 21 | G40: Т | H40: 137800 | L40: 130000
A41: Швеллер НЛГ 22 П | B41: 12м | C41: С355 | D41: 8240 | E41: 252 | F41: 21 | G41: Т | H41: 144085.8 | L41: 135930
A42: Швеллер НЛГ 22 У | B42: 12м | C42: 09г2с-15 | D42: 8240 | E42: 252 | F42: 21 | G42: Т | H42: 137800 | L42: 130000
A43: Швеллер НЛГ 24 П | B43: 12м | C43: С355 | D43: 8240 | E43: 293 | F43: 24 | G43: Т | H43: 137800 | L43: 130000
A44: Швеллер НЛГ 24 У | B44: 12м | C44: 09г2с-15 | D44: 8240 | E44: 288 | F44: 24 | G44: Т | H44: 144085.8 | L44: 135930
A45: Швеллер НЛГ 24 У | B45: 12м | C45: С355 | D45: 8240 | E45: 295.5 | F45: 24 | G45: Т | H45: 137800 | L45: 130000
A46: Швеллер НЛГ 27 П | B46: 12м | C46: С355 | D46: 8240 | E46: 339 | F46: 27.7 | G46: Т | H46: 155661 | L46: 146850
A47: Швеллер НЛГ 27 У | B47: 12м | C47: С355 | D47: 8240 | E47: 340 | F47: 27.7 | G47: Т | H47: 155661 | L47: 146850
A48: Швеллер НЛГ 27 У | B48: 12м | C48: 09г2с | D48: 8240 | E48: 332.4 | F48: 27.7 | G48: Т | H48: 163929 | L48: 154650
A49: Швеллер НЛГ 27 У | B49: 12м | C49: 09г2с-15 | D49: 8240 | E49: 332.4 | F49: 27.7 | G49: Т | H49: 163929 | L49: 154650
A50: Швеллер НЛГ 30 П | B50: 12м | C50: С355 | D50: 8240 | E50: 381.6 | F50: 31.8 | G50: Т | H50: 155661 | L50: 146850
A51: Швеллер НЛГ 30 П | B51: 12м | C51: 09г2с-15 | D51: 8240 | E51: 381.6 | F51: 31.8 | G51: Т | H51: 155661 | L51: 146850
A52: Швеллер НЛГ 30 У | B52: 12м | C52: С355 | D52: 8240 | E52: 381.6 | F52: 31.8 | G52: Т | H52: 155661 | L52: 146850
A53: Швеллер НЛГ 30 У | B53: 12м | C53: 09г2с-15 | D53: 8240 | E53: 381.6 | F53: 31.8 | G53: Т | H53: 164257.6 | L53: 154960
A54: Швеллер НЛГ 40 П | B54: 12м | C54: 09г2с-15 | D54: 8240 | E54: 579.6 | F54: 48.3 | G54: Т | H54: 216070.4 | L54: 203840
A55: Швеллер НЛГ 40 П | B55: 12м | C55: С355 | D55: 8240 | E55: 579.6 | F55: 48.3 | G55: Т | H55: 216070.4 | L55: 203840
A58: Внимание! Цены справочные, актуальные запрашивать в отделах продаж
A59: Цены указаны при условии 100% предоплаты. Условия рассрочки оплаты согласовываются индивидуально
A60: Компания предоставляет услуги:
A61: *Размотка бухтовой арматуры, круга
A62: *Доставка автотранспортом
A63: *Резка кругом, газом, лазером (в т.ч. давальческого сырья)
A64: *Рубка на гильотине (в т.ч. давальческого сырья)
A65: *Гибка листов, покраска и сверление металла
A66: *Ответ хранение металла в крытом складе
A67: *Чистка труб
A68: *Взвешивание транспорта по запросу
A69: *Прайс-лист носит информационный характер и не является публичной офертой. Стоимость товаров, другие виды товаров, их наличие и подробные характеристики уточняйте у вашего менеджера или по телефону +7 (342) 219-56-60 или zakaz@kvin.ru

Sheet Шестигранник
K6: Шестигранник
A11: На Главную
A12: ПРАЙС-ЛИСТ на Шестигранник
A14: Цены указаны с НДС от 1 тонны
A15: Наименование | B15: Мерность | C15: Марка стали | D15: Гост | E15: Вес 1 шт, кг | F15: Вес 1 пм, кг | G15: ЕИ | H15: Цена р/т | I15: Цена р/т | J15: Цена р/т
A17: Шестигранник 12 | B17: 12 | C17: ст35 | D17: 2879 | E17: 0 | F17: 0.98 | G17: Т | H17: =L17*6%+L17 -> 98590.6 | L17: 93010
A18: Шестигранник 14 | B18: 14 | C18: ст20 | D18: 2879 | E18: 0 | F18: 1.33 | G18: Т | H18: =L18*6%+L18 -> 98590.6 | L18: 93010
A19: Шестигранник 17 | B19: 17 | C19: ст45 | D19: 2879 | E19: 0 | F19: 1.97 | G19: Т | H19: 98590.6 | L19: 93010
A20: Шестигранник 19 | B20: 19 | C20: ст45 | D20: 2879 | E20: 0 | F20: 2.45 | G20: Т | H20: 98590.6 | L20: 93010
A21: Шестигранник 19 | B21: 19 | C21: ст35 | D21: 2879 | E21: 0 | F21: 2.45 | G21: Т | H21: 98590.6 | L21: 93010
A22: Шестигранник 19 | B22: 19 | C22: ст20 | D22: 2879 | E22: 0 | F22: 2.45 | G22: Т | H22: 98590.6 | L22: 93010
A23: Шестигранник 22 | B23: 22 | C23: ст45 | D23: 2879 | E23: 0 | F23: 3.29 | G23: Т | H23: 98590.6 | L23: 93010
A24: Шестигранник 22 | B24: 22 | C24: ст20 | D24: 2879 | E24: 0 | F24: 3.29 | G24: Т | H24: 98590.6 | L24: 93010
A25: Шестигранник 24 | B25: 24 | C25: ст20 | D25: 2879 | E25: 0 | F25: 3.92 | G25: Т | H25: 98590.6 | L25: 93010
A26: Шестигранник 27 | B26: 27 | C26: ст35 | D26: 2879 | E26: 0 | F26: 4.98 | G26: Т | H26: 98590.6 | L26: 93010
A27: Шестигранник 27 | B27: 27 | C27: ст20 | D27: 2879 | E27: 0 | F27: 4.98 | G27: Т | H27: 98590.6 | L27: 93010
A28: Шестигранник 30 | B28: 30 | C28: ст45 | D28: 2879 | E28: 0 | F28: 6.12 | G28: Т | H28: 98590.6 | L28: 93010
A29: Шестигранник 30 | B29: 30 | C29: ст20 | D29: 2879 | E29: 0 | F29: 6.12 | G29: Т | H29: 98590.6 | L29: 93010
A30: Шестигранник 32 | B30: 32 | C30: ст45 | D30: 2879 | E30: 0 | F30: 6.96 | G30: Т | H30: 98590.6 | L30: 93010
A31: Шестигранник 32 | B31: 32 | C31: ст20 | D31: 2879 | E31: 0 | F31: 6.96 | G31: Т | H31: 98590.6 | L31: 93010
A32: Шестигранник 36 | B32: 36 | C32: ст45 | D32: 2879 | E32: 0 | F32: 8.81 | G32: Т | H32: 98590.6 | L32: 93010
A33: Шестигранник 36 | B33: 36 | C33: ст35 | D33: 2879 | E33: 0 | F33: 8.81 | G33: Т | H33: 98590.6 | L33: 93010
A34: Шестигранник 36 | B34: 36 | C34: ст20 | D34: 2879 | E34: 0 | F34: 8.81 | G34: Т | H34: 98590.6 | L34: 93010
A35: Шестигранник 46 | B35: 46 | C35: ст45 | D35: 2879 | E35: 0 | F35: 14.45 | G35: Т | H35: 98590.6 | L35: 93010
A36: Шестигранник 65 | B36: 65 | C36: ст45 | D36: 2879 | E36: 0 | F36: 28.72 | G36: Т | H36: 98590.6 | L36: 93010
A37: Шестигранник 75 | B37: 75 | C37: ст45 | D37: 2879 | E37: 0 | F37: 38.24 | G37: Т | H37: 98590.6 | L37: 93010
A40: Внимание! Цены справочные, актуальные запрашивать в отделах продаж
A41: Цены указаны при условии 100% предоплаты. Условия рассрочки оплаты согласовываются индивидуально
A42: Компания предоставляет услуги:
A43: *Размотка бухтовой арматуры, круга
A44: *Доставка автотранспортом
A45: *Резка кругом, газом, лазером (в т.ч. давальческого сырья)
A46: *Рубка на гильотине (в т.ч. давальческого сырья)
A47: *Гибка листов, покраска и сверление металла
A48: *Ответ хранение металла в крытом складе
A49: *Чистка труб
A50: *Взвешивание транспорта по запросу
A51: *Прайс-лист носит информационный характер и не является публичной офертой. Стоимость товаров, другие виды товаров, их наличие и подробные характеристики уточняйте у вашего менеджера или по телефону +7 (342) 219-56-60 или zakaz@kvin.ru

Sheet Швеллер гнутый
A11: На Главную
A12: ПРАЙС-ЛИСТ на Швеллер гнутый
A14: Цены указаны с НДС от 1 тонны
A15: Наименование | B15: Мерность | C15: Марка стали | D15: Гост | E15: Вес 1 шт, кг | F15: Вес 1 пм, кг | G15: ЕИ | H15: Цена р/т | I15: Цена р/т | J15: Цена р/т
A17: Швеллер гнутый 80 40 3 | C17: ст3пс5/сп5 | D17: 8278 | E17: 0 | F17: 3.49 | G17: Т | H17: =L17*6%+L17 -> 79754.4 | L17: 75240
A18: Швеллер гнутый 100 50 3 | C18: ст3пс5/сп5 | D18: 8278 | E18: 0 | F18: 4.43 | G18: Т | H18: =L18*6%+L18 -> 79754.4 | L18: 75240
A19: Швеллер гнутый 100 50 4 | C19: ст3пс5/сп5 | D19: 8278 | E19: 70 | F19: 5.78 | G19: Т | H19: 79086.6 | L19: 74610
A20: Швеллер гнутый 120 60 4 | C20: ст3пс5/сп5 | D20: 8278 | E20: 85 | F20: 7.03 | G20: Т | H20: 79086.6 | L20: 74610
A21: Швеллер гнутый 140 60 4 | C21: ст3пс5/сп5 | D21: 8278 | E21: 90 | F21: 7.66 | G21: Т | H21: 79086.6 | L21: 74610
A22: Швеллер гнутый 160 60 4 | C22: ст3пс5/сп5 | D22: 8278 | E22: 100 | F22: 8.29 | G22: Т | H22: 79086.6 | L22: 74610
A23: Швеллер гнутый 160 80 4 | C23: ст3пс5/сп5 | D23: 8278 | E23: 115 | F23: 9.55 | G23: Т | H23: 79086.6 | L23: 74610
A24: Швеллер гнутый 160 80 5 | C24: ст3пс5/сп5 | D24: 8278 | E24: 140 | F24: 11.78 | G24: Т | H24: 79086.6 | L24: 74610
A25: Швеллер гнутый 180 80 5 | C25: ст3пс5/сп5 | D25: 8278 | E25: 0 | F25: 12.56 | G25: Т | H25: 79086.6 | L25: 74610
A26: Швеллер гнутый 200 80 5 | C26: ст3пс5/сп5 | D26: 8278 | E26: 158 | F26: 13.35 | G26: Т | H26: 79086.6 | L26: 74610
A27: Швеллер гнутый 200 100 6 | C27: ст3пс5/сп5 | D27: 8278 | E27: 0 | F27: 17.71 | G27: Т | H27: 79086.6 | L27: 74610
A31: Внимание! Цены справочные, актуальные запрашивать в отделах продаж
A32: Цены указаны при условии 100% предоплаты. Условия рассрочки оплаты согласовываются индивидуально
A33: Компания предоставляет услуги:
A34: *Размотка бухтовой арматуры, круга
A35: *Доставка автотранспортом
A36: *Резка кругом, газом, лазером (в т.ч. давальческого сырья)
A37: *Рубка на гильотине (в т.ч. давальческого сырья)
A38: *Гибка листов, покраска и сверление металла
A39: *Ответ хранение металла в крытом складе
A40: *Чистка труб
A41: *Взвешивание транспорта по запросу
A42: *Прайс-лист носит информационный характер и не является публичной офертой. Стоимость товаров, другие виды товаров, их наличие и подробные характеристики уточняйте у вашего менеджера или по телефону +7 (342) 219-56-60 или zakaz@kvin.ru
